Workbook

Sheet Retail
A1: Invoice | B1: StockCode | C1: Description | D1: Quantity | E1: InvoiceDate | F1: Price | G1: Customer ID | H1: Country | I1: Amount | J1: =SUM($I:$I) -> 340.554 | K1: Proportion
A2: 494914 | B2: PADS | C2: PADS TO MATCH ALL CUSHIONS | D2: 1 | E2: 2010-01-19T17:04:00 | F2: 0.001 | G2: 16705 | H2: United Kingdom | I2: 0.001 | J2: =I2 -> 0.001 | K2: =J2/$J$1 -> 2.936391879e-06
A3: 496222 | B3: PADS | C3: PADS TO MATCH ALL CUSHIONS | D3: 1 | E3: 2010-01-29T13:53:00 | F3: 0.001 | G3: 13583 | H3: United Kingdom | I3: 0.001 | J3: =I3+J2 -> 0.002 | K3: =J3/$J$1 -> 5.872783758e-06
A4: 496473 | B4: PADS | C4: PADS TO MATCH ALL CUSHIONS | D4: 1 | E4: 2010-02-01T15:38:00 | F4: 0.001 | G4: 17350 | H4: United Kingdom | I4: 0.001 | J4: =I4+J3 -> 0.003 | K4: 8.809175637e-06
A5: 496643 | B5: PADS | C5: PADS TO MATCH ALL CUSHIONS | D5: 1 | E5: 2010-02-03T11:58:00 | F5: 0.001 | G5: 13408 | H5: United Kingdom | I5: 0.001 | J5: 0.004 | K5: 1.174556752e-05
A6: 497935 | B6: PADS | C6: PADS TO MATCH ALL CUSHIONS | D6: 1 | E6: 2010-02-15T10:47:00 | F6: 0.001 | G6: 13408 | H6: United Kingdom | I6: 0.001 | J6: 0.005 | K6: 1.46819594e-05
A7: 498562 | B7: PADS | C7: PADS TO MATCH ALL CUSHIONS | D7: 1 | E7: 2010-02-21T12:03:00 | F7: 0.001 | G7: 15182 | H7: United Kingdom | I7: 0.001 | J7: 0.006 | K7: 1.761835127e-05
A8: 499056 | B8: PADS | C8: PADS TO MATCH ALL CUSHIONS | D8: 1 | E8: 2010-02-24T13:46:00 | F8: 0.001 | G8: 13765 | H8: United Kingdom | I8: 0.001 | J8: 0.007 | K8: 2.055474315e-05
A9: 499399 | B9: PADS | C9: PADS TO MATCH ALL CUSHIONS | D9: 1 | E9: 2010-02-26T13:26:00 | F9: 0.001 | G9: 14459 | H9: United Kingdom | I9: 0.001 | J9: 0.008 | K9: 2.349113503e-05
A10: 501176 | B10: PADS | C10: PADS TO MATCH ALL CUSHIONS | D10: 1 | E10: 2010-03-15T11:00:00 | F10: 0.001 | G10: 14857 | H10: United Kingdom | I10: 0.001 | J10: 0.009 | K10: 2.642752691e-05
A11: 504332 | B11: PADS | C11: PADS TO MATCH ALL CUSHIONS | D11: 1 | E11: 2010-04-12T16:30:00 | F11: 0.001 | G11: 12671 | H11: Germany | I11: 0.001 | J11: 0.01 | K11: 2.936391879e-05
A12: 506303 | B12: PADS | C12: PADS TO MATCH ALL CUSHIONS | D12: 1 | E12: 2010-04-29T10:43:00 | F12: 0.001 | G12: 14249 | H12: United Kingdom | I12: 0.001 | J12: 0.011 | K12: 3.230031067e-05
A13: 522766 | B13: PADS | C13: PADS TO MATCH ALL CUSHIONS | D13: 1 | E13: 2010-09-16T13:58:00 | F13: 0.001 | G13: 15182 | H13: United Kingdom | I13: 0.001 | J13: 0.012 | K13: 3.523670255e-05
A14: 531433 | B14: PADS | C14: PADS TO MATCH ALL CUSHIONS | D14: 1 | E14: 2010-11-08T11:54:00 | F14: 0.001 | G14: 13317 | H14: United Kingdom | I14: 0.001 | J14: 0.013 | K14: 3.817309443e-05
A15: 533528 | B15: PADS | C15: PADS TO MATCH ALL CUSHIONS | D15: 1 | E15: 2010-11-17T15:08:00 | F15: 0.001 | G15: 15750 | H15: United Kingdom | I15: 0.001 | J15: 0.014 | K15: 4.110948631e-05
A16: 490279 | B16: 35015 | C16: JACOBS LADDER SMALL | D16: 1 | E16: 2009-12-04T12:37:00 | F16: 0.06 | G16: 16891 | H16: United Kingdom | I16: 0.06 | J16: 0.074 | K16: 0.0002172929991
A17: 510801 | B17: 35015 | C17: JACOBS LADDER SMALL | D17: 1 | E17: 2010-06-03T17:53:00 | F17: 0.06 | G17: 17290 | H17: United Kingdom | I17: 0.06 | J17: 0.134 | K17: 0.0003934765118
A18: 523773 | B18: 35015 | C18: JACOBS LADDER SMALL | D18: 1 | E18: 2010-09-24T11:11:00 | F18: 0.06 | G18: 17811 | H18: United Kingdom | I18: 0.06 | J18: 0.194 | K18: 0.0005696600245
A19: 508629 | B19: M | C19: Manual | D19: 1 | E19: 2010-05-17T14:21:00 | F19: 0.1 | G19: 13857 | H19: United Kingdom | I19: 0.1 | J19: 0.294 | K19: 0.0008632992125
A20: 494674 | B20: 20668 | C20: DISCO BALL CHRISTMAS DECORATION | D20: 1 | E20: 2010-01-17T16:01:00 | F20: 0.12 | G20: 14606 | H20: United Kingdom | I20: 0.12 | J20: 0.414 | K20: 0.001215666238
A21: 496488 | B21: 20668 | C21: DISCO BALL CHRISTMAS DECORATION | D21: 1 | E21: 2010-02-01T17:16:00 | F21: 0.12 | G21: 14606 | H21: United Kingdom | I21: 0.12 | J21: 0.534 | K21: 0.001568033263
A22: 500933 | B22: 20668 | C22: DISCO BALL CHRISTMAS DECORATION | D22: 1 | E22: 2010-03-11T11:45:00 | F22: 0.12 | G22: 14606 | H22: United Kingdom | I22: 0.12 | J22: 0.654 | K22: 0.001920400289
A23: 516843 | B23: 16033 | C23: MINI HIGHLIGHTER PENS | D23: 1 | E23: 2010-07-23T11:32:00 | F23: 0.12 | G23: 15867 | H23: United Kingdom | I23: 0.12 | J23: 0.774 | K23: 0.002272767314
A24: 511481 | B24: 15034 | C24: PAPER POCKET TRAVELING FAN | D24: 1 | E24: 2010-06-08T14:00:00 | F24: 0.14 | G24: 15353 | H24: United Kingdom | I24: 0.14 | J24: 0.914 | K24: 0.002683862178
A25: 517552 | B25: 15034 | C25: PAPER POCKET TRAVELING FAN | D25: 1 | E25: 2010-07-29T18:49:00 | F25: 0.14 | G25: 13969 | H25: United Kingdom | I25: 0.14 | J25: 1.054 | K25: 0.003094957041
A26: 517577 | B26: 15034 | C26: PAPER POCKET TRAVELING FAN | D26: 1 | E26: 2010-07-30T10:33:00 | F26: 0.14 | H26: United Kingdom | I26: 0.14 | J26: 1.194 | K26: 0.003506051904
A27: 520401 | B27: 15034 | C27: PAPER POCKET TRAVELING FAN | D27: 1 | E27: 2010-08-25T16:58:00 | F27: 0.14 | G27: 16448 | H27: United Kingdom | I27: 0.14 | J27: 1.334 | K27: 0.003917146767
A28: 522711 | B28: 15034 | C28: PAPER POCKET TRAVELING FAN | D28: 1 | E28: 2010-09-16T11:40:00 | F28: 0.14 | G28: 17348 | H28: United Kingdom | I28: 0.14 | J28: 1.474 | K28: 0.00432824163
A29: 537196 | B29: 15034 | C29: PAPER POCKET TRAVELING FAN | D29: 1 | E29: 2010-12-05T13:55:00 | F29: 0.14 | G29: 15426 | H29: United Kingdom | I29: 0.14 | J29: 1.614 | K29: 0.004739336493
A30: 537222 | B30: 15034 | C30: PAPER POCKET TRAVELING FAN | D30: 1 | E30: 2010-12-05T16:00:00 | F30: 0.14 | G30: 14404 | H30: United Kingdom | I30: 0.14 | J30: 1.754 | K30: 0.005150431356
A31: 499970 | B31: 16216 | C31: LETTER SHAPE PENCIL SHARPENER | D31: 1 | E31: 2010-03-03T14:20:00 | F31: 0.16 | H31: United Kingdom | I31: 0.16 | J31: 1.914 | K31: 0.005620254057
A32: 515907 | B32: 16216 | C32: LETTER SHAPE PENCIL SHARPENER | D32: 1 | E32: 2010-07-15T13:13:00 | F32: 0.16 | G32: 13564 | H32: United Kingdom | I32: 0.16 | J32: 2.074 | K32: 0.006090076757
A33: 535590 | B33: 16218 | C33: CARTOON PENCIL SHARPENERS | D33: 1 | E33: 2010-11-26T16:20:00 | F33: 0.16 | G33: 17218 | H33: United Kingdom | I33: 0.16 | J33: 2.234 | K33: 0.006559899458
A34: 513410 | B34: 18007 | C34: ESSENTIAL BALM 3.5g TIN IN ENVELOPE | D34: 1 | E34: 2010-06-24T12:11:00 | F34: 0.18 | G34: 15051 | H34: United Kingdom | I34: 0.18 | J34: 2.414 | K34: 0.007088449996
A35: 521148 | B35: 18007 | C35: ESSENTIAL BALM 3.5g TIN IN ENVELOPE | D35: 1 | E35: 2010-09-02T13:27:00 | F35: 0.18 | G35: 16065 | H35: United Kingdom | I35: 0.18 | J35: 2.594 | K35: 0.007617000534
A36: 531440 | B36: 18007 | C36: ESSENTIAL BALM 3.5g TIN IN ENVELOPE | D36: 1 | E36: 2010-11-08T12:28:00 | F36: 0.18 | G36: 16470 | H36: United Kingdom | I36: 0.18 | J36: 2.774 | K36: 0.008145551073
A37: 533458 | B37: 18007 | C37: ESSENTIAL BALM 3.5g TIN IN ENVELOPE | D37: 1 | E37: 2010-11-17T12:03:00 | F37: 0.18 | G37: 16006 | H37: United Kingdom | I37: 0.18 | J37: 2.954 | K37: 0.008674101611
A38: 533755 | B38: 18007 | C38: ESSENTIAL BALM 3.5g TIN IN ENVELOPE | D38: 1 | E38: 2010-11-18T14:25:00 | F38: 0.18 | G38: 15571 | H38: United Kingdom | I38: 0.18 | J38: 3.134 | K38: 0.009202652149
A39: 535805 | B39: 18007 | C39: ESSENTIAL BALM 3.5g TIN IN ENVELOPE | D39: 1 | E39: 2010-11-28T15:04:00 | F39: 0.18 | G39: 15583 | H39: United Kingdom | I39: 0.18 | J39: 3.314 | K39: 0.009731202687
A40: 535805 | B40: 18007 | C40: ESSENTIAL BALM 3.5g TIN IN ENVELOPE | D40: 1 | E40: 2010-11-28T15:04:00 | F40: 0.18 | G40: 15583 | H40: United Kingdom | I40: 0.18 | J40: 3.494 | K40: 0.01025975323
A41: 537351 | B41: 18007 | C41: ESSENTIAL BALM 3.5g TIN IN ENVELOPE | D41: 1 | E41: 2010-12-06T12:23:00 | F41: 0.18 | G41: 16898 | H41: United Kingdom | I41: 0.18 | J41: 3.674 | K41: 0.01078830376
A42: 489824 | B42: 47420 | C42: ASSORTED COLOUR SUCTION CUP HOOK | D42: 1 | E42: 2009-12-02T13:33:00 | F42: 0.19 | G42: 16797 | H42: United Kingdom | I42: 0.19 | J42: 3.864 | K42: 0.01134621822
A43: 490494 | B43: 84206A | C43: 3 BLACK CATS W HEARTS BLANK CARD | D43: 1 | E43: 2009-12-06T13:29:00 | F43: 0.19 | G43: 17561 | H43: United Kingdom | I43: 0.19 | J43: 4.054 | K43: 0.01190413268
A44: 490494 | B44: 84206C | C44: CHAMPAGNE TRAY BLANK CARD | D44: 1 | E44: 2009-12-06T13:29:00 | F44: 0.19 | G44: 17561 | H44: United Kingdom | I44: 0.19 | J44: 4.244 | K44: 0.01246204713
A45: 492176 | B45: 35271S | C45: GOLD PRINT PAPER BAG | D45: 1 | E45: 2009-12-15T15:21:00 | F45: 0.19 | G45: 17841 | H45: United Kingdom | I45: 0.19 | J45: 4.434 | K45: 0.01301996159
A46: 492593 | B46: 16258A | C46: SWIRLY CIRCULAR RUBBERS IN BAG | D46: 1 | E46: 2009-12-17T15:44:00 | F46: 0.19 | G46: 15917 | H46: United Kingdom | I46: 0.19 | J46: 4.624 | K46: 0.01357787605
A47: 492593 | B47: 35633B | C47: BLUE TINSEL GARLAND | D47: 1 | E47: 2009-12-17T15:44:00 | F47: 0.19 | G47: 15917 | H47: United Kingdom | I47: 0.19 | J47: 4.814 | K47: 0.01413579051
A48: 492659 | B48: 35633B | C48: BLUE TINSEL GARLAND | D48: 1 | E48: 2009-12-17T17:54:00 | F48: 0.19 | G48: 16720 | H48: United Kingdom | I48: 0.19 | J48: 5.004 | K48: 0.01469370496
A49: 498160 | B49: 35607A | C49: PINK FLUFFY CHRISTMAS DECORATION | D49: 1 | E49: 2010-02-17T11:58:00 | F49: 0.19 | G49: 15911 | H49: United Kingdom | I49: 0.19 | J49: 5.194 | K49: 0.01525161942
A50: 498578 | B50: 72232 | C50: FENG SHUI PILLAR CANDLE | D50: 1 | E50: 2010-02-21T14:18:00 | F50: 0.19 | G50: 13980 | H50: United Kingdom | I50: 0.19 | J50: 5.384 | K50: 0.01580953388
A51: 508627 | B51: 84206C | C51: CHAMPAGNE TRAY BLANK CARD | D51: 1 | E51: 2010-05-17T14:15:00 | F51: 0.19 | G51: 16932 | H51: United Kingdom | I51: 0.19 | J51: 5.574 | K51: 0.01636744833
A52: 515569 | B52: 35607A | C52: PINK FLUFFY CHRISTMAS DECORATION | D52: 1 | E52: 2010-07-13T12:33:00 | F52: 0.19 | G52: 14461 | H52: United Kingdom | I52: 0.19 | J52: 5.764 | K52: 0.01692536279
A53: 517723 | B53: 46115B | C53: GREEN POP ART MAO CUSHION COVER | D53: 1 | E53: 2010-08-01T12:48:00 | F53: 0.19 | G53: 14878 | H53: United Kingdom | I53: 0.19 | J53: 5.954 | K53: 0.01748327725
A54: 517723 | B54: 84251F | C54: GREETING CARD, RITA | D54: 1 | E54: 2010-08-01T12:48:00 | F54: 0.19 | G54: 14878 | H54: United Kingdom | I54: 0.19 | J54: 6.144 | K54: 0.01804119171
A55: 517723 | B55: 84251G | C55: GREETING CARD, OVERCROWDED POOL. | D55: 1 | E55: 2010-08-01T12:48:00 | F55: 0.19 | G55: 14878 | H55: United Kingdom | I55: 0.19 | J55: 6.334 | K55: 0.01859910616
A56: 517723 | B56: 84251G | C56: GREETING CARD, OVERCROWDED POOL. | D56: 1 | E56: 2010-08-01T12:48:00 | F56: 0.19 | G56: 14878 | H56: United Kingdom | I56: 0.19 | J56: 6.524 | K56: 0.01915702062
A57: 517723 | B57: 84251B | C57: GREETING CARD, STICKY GORDON | D57: 1 | E57: 2010-08-01T12:48:00 | F57: 0.19 | G57: 14878 | H57: United Kingdom | I57: 0.19 | J57: 6.714 | K57: 0.01971493508
A58: 519188 | B58: 84251B | C58: GREETING CARD, STICKY GORDON | D58: 1 | E58: 2010-08-13T16:17:00 | F58: 0.19 | G58: 14693 | H58: United Kingdom | I58: 0.19 | J58: 6.904 | K58: 0.02027284953
A59: 519188 | B59: 84251G | C59: GREETING CARD, OVERCROWDED POOL. | D59: 1 | E59: 2010-08-13T16:17:00 | F59: 0.19 | G59: 14693 | H59: United Kingdom | I59: 0.19 | J59: 7.094 | K59: 0.02083076399
A60: 519188 | B60: 84251C | C60: GREETING CARD, TWO SISTERS. | D60: 1 | E60: 2010-08-13T16:17:00 | F60: 0.19 | G60: 14693 | H60: United Kingdom | I60: 0.19 | J60: 7.284 | K60: 0.02138867845
A61: 519188 | B61: 84251F | C61: GREETING CARD, RITA | D61: 1 | E61: 2010-08-13T16:17:00 | F61: 0.19 | G61: 14693 | H61: United Kingdom | I61: 0.19 | J61: 7.474 | K61: 0.0219465929
A62: 520207 | B62: 84201B | C62: HAPPY BIRTHDAY CARD STRIPEY TEDDY | D62: 1 | E62: 2010-08-24T16:14:00 | F62: 0.19 | G62: 15666 | H62: United Kingdom | I62: 0.19 | J62: 7.664 | K62: 0.02250450736
A63: 520207 | B63: 84201C | C63: HAPPY BIRTHDAY CARD TEDDY/CAKE | D63: 1 | E63: 2010-08-24T16:14:00 | F63: 0.19 | G63: 15666 | H63: United Kingdom | I63: 0.19 | J63: 7.854 | K63: 0.02306242182
A64: 522281 | B64: 84251F | C64: GREETING CARD, RITA | D64: 1 | E64: 2010-09-13T12:56:00 | F64: 0.19 | G64: 16374 | H64: United Kingdom | I64: 0.19 | J64: 8.044 | K64: 0.02362033628
A65: 524322 | B65: 47420 | C65: ASSORTED COLOUR SUCTION CUP HOOK | D65: 1 | E65: 2010-09-28T14:33:00 | F65: 0.19 | G65: 16710 | H65: United Kingdom | I65: 0.19 | J65: 8.234 | K65: 0.02417825073
A66: 525856 | B66: 46115B | C66: GREEN POP ART MAO CUSHION COVER | D66: 1 | E66: 2010-10-07T13:05:00 | F66: 0.19 | G66: 13569 | H66: United Kingdom | I66: 0.19 | J66: 8.424 | K66: 0.02473616519
A67: 527065 | B67: 35607A | C67: PINK FLUFFY CHRISTMAS DECORATION | D67: 1 | E67: 2010-10-14T13:57:00 | F67: 0.19 | G67: 17751 | H67: United Kingdom | I67: 0.19 | J67: 8.614 | K67: =J67/$J$1 -> 0.02529407965
A68: 527065 | B68: 35607B | C68: BLACK FEATHER CHRISTMAS DECORATION | D68: 1 | E68: 2010-10-14T13:57:00 | F68: 0.19 | G68: 17751 | H68: United Kingdom | I68: 0.19 | J68: =I68+J67 -> 8.804 | K68: 0.0258519941
A69: 528127 | B69: 84201B | C69: HAPPY BIRTHDAY CARD STRIPEY TEDDY | D69: 1 | E69: 2010-10-20T14:42:00 | F69: 0.19 | H69: United Kingdom | I69: 0.19 | J69: 8.994 | K69: 0.02640990856
A70: 530085 | B70: 35607B | C70: BLACK FEATHER CHRISTMAS DECORATION | D70: 1 | E70: 2010-11-01T13:26:00 | F70: 0.19 | G70: 17315 | H70: United Kingdom | I70: 0.19 | J70: 9.184 | K70: 0.02696782302
A71: 496979 | B71: 22499 | C71: WOODEN UNION JACK BUNTING | D71: 2 | E71: 2010-02-05T09:58:00 | F71: 0.1 | H71: United Kingdom | I71: 0.2 | J71: 9.384 | K71: 0.02755510139
A72: 489571 | B72: 16237 | C72: SLEEPING CAT ERASERS | D72: 1 | E72: 2009-12-01T13:29:00 | F72: 0.21 | G72: 15967 | H72: United Kingdom | I72: 0.21 | J72: 9.594 | K72: 0.02817174369
A73: 489802 | B73: 16235 | C73: RECYCLED PENCIL WITH RABBIT ERASER | D73: 1 | E73: 2009-12-02T12:32:00 | F73: 0.21 | G73: 15581 | H73: United Kingdom | I73: 0.21 | J73: 9.804 | K73: 0.02878838598
A74: 490300 | B74: M | C74: Manual | D74: 1 | E74: 2009-12-04T14:19:00 | F74: 0.21 | G74: 12970 | H74: United Kingdom | I74: 0.21 | J74: 10.014 | K74: 0.02940502828
A75: 490323 | B75: 84199 | C75: GLOW IN DARK DOLPHINS | D75: 1 | E75: 2009-12-04T15:27:00 | F75: 0.21 | G75: 14087 | H75: United Kingdom | I75: 0.21 | J75: 10.224 | K75: 0.03002167057
A76: 490362 | B76: 84199 | C76: GLOW IN DARK DOLPHINS | D76: 1 | E76: 2009-12-04T17:31:00 | F76: 0.21 | G76: 12748 | H76: United Kingdom | I76: 0.21 | J76: 10.434 | K76: 0.03063831287
A77: 490613 | B77: 21829 | C77: DINOSAUR KEYRINGS ASSORTED | D77: 1 | E77: 2009-12-07T11:47:00 | F77: 0.21 | G77: 16768 | H77: United Kingdom | I77: 0.21 | J77: 10.644 | K77: 0.03125495516
A78: 490693 | B78: 16236 | C78: KITTY PENCIL ERASERS | D78: 1 | E78: 2009-12-07T13:59:00 | F78: 0.21 | G78: 14670 | H78: United Kingdom | I78: 0.21 | J78: 10.854 | K78: 0.03187159746
A79: 491435 | B79: 17003 | C79: BROCADE RING PURSE | D79: 1 | E79: 2009-12-11T10:10:00 | F79: 0.21 | G79: 14606 | H79: United Kingdom | I79: 0.21 | J79: 11.064 | K79: 0.03248823975
A80: 491712 | B80: 16236 | C80: KITTY PENCIL ERASERS | D80: 1 | E80: 2009-12-13T15:17:00 | F80: 0.21 | G80: 15562 | H80: United Kingdom | I80: 0.21 | J80: 11.274 | K80: 0.03310488205
A81: 491893 | B81: 44234 | C81: ASSORTED CIRCULAR MOBILE | D81: 1 | E81: 2009-12-14T15:17:00 | F81: 0.21 | G81: 16805 | H81: United Kingdom | I81: 0.21 | J81: 11.484 | K81: 0.03372152434
A82: 492593 | B82: 16236 | C82: KITTY PENCIL ERASERS | D82: 1 | E82: 2009-12-17T15:44:00 | F82: 0.21 | G82: 15917 | H82: United Kingdom | I82: 0.21 | J82: 11.694 | K82: 0.03433816663
A83: 492659 | B83: 84199 | C83: GLOW IN DARK DOLPHINS | D83: 1 | E83: 2009-12-17T17:54:00 | F83: 0.21 | G83: 16720 | H83: United Kingdom | I83: 0.21 | J83: 11.904 | K83: 0.03495480893
A84: 492820 | B84: 84199 | C84: GLOW IN DARK DOLPHINS | D84: 1 | E84: 2009-12-20T14:40:00 | F84: 0.21 | G84: 14404 | H84: United Kingdom | I84: 0.21 | J84: 12.114 | K84: 0.03557145122
A85: 493842 | B85: 10120 | C85: DOGGY RUBBER | D85: 1 | E85: 2010-01-07T14:20:00 | F85: 0.21 | H85: United Kingdom | I85: 0.21 | J85: 12.324 | K85: 0.03618809352
A86: 493974 | B86: 17136A | C86: BLUE STONES ON WIRE FOR CANDLE | D86: 1 | E86: 2010-01-10T11:12:00 | F86: 0.21 | G86: 16787 | H86: United Kingdom | I86: 0.21 | J86: 12.534 | K86: 0.03680473581
A87: 494213 | B87: 16237 | C87: SLEEPING CAT ERASERS | D87: 1 | E87: 2010-01-12T11:40:00 | F87: 0.21 | G87: 17945 | H87: United Kingdom | I87: 0.21 | J87: 12.744 | K87: 0.03742137811
A88: 494359 | B88: 44234 | C88: ASSORTED CIRCULAR MOBILE | D88: 1 | E88: 2010-01-13T15:24:00 | F88: 0.21 | G88: 17962 | H88: United Kingdom | I88: 0.21 | J88: 12.954 | K88: 0.0380380204
A89: 494359 | B89: 44234 | C89: ASSORTED CIRCULAR MOBILE | D89: 1 | E89: 2010-01-13T15:24:00 | F89: 0.21 | G89: 17962 | H89: United Kingdom | I89: 0.21 | J89: 13.164 | K89: 0.0386546627
A90: 494359 | B90: 44234 | C90: ASSORTED CIRCULAR MOBILE | D90: 1 | E90: 2010-01-13T15:24:00 | F90: 0.21 | G90: 17962 | H90: United Kingdom | I90: 0.21 | J90: 13.374 | K90: 0.03927130499
A91: 495193 | B91: 17003 | C91: BROCADE RING PURSE | D91: 1 | E91: 2010-01-21T15:02:00 | F91: 0.21 | G91: 14606 | H91: United Kingdom | I91: 0.21 | J91: 13.584 | K91: 0.03988794729
A92: 495921 | B92: 17136A | C92: BLUE STONES ON WIRE FOR CANDLE | D92: 1 | E92: 2010-01-27T14:03:00 | F92: 0.21 | G92: 15311 | H92: United Kingdom | I92: 0.21 | J92: 13.794 | K92: 0.04050458958
A93: 496301 | B93: 16236 | C93: KITTY PENCIL ERASERS | D93: 1 | E93: 2010-01-31T11:01:00 | F93: 0.21 | G93: 16718 | H93: United Kingdom | I93: 0.21 | J93: 14.004 | K93: 0.04112123188
A94: 497501 | B94: 17003 | C94: BROCADE RING PURSE | D94: 1 | E94: 2010-02-10T11:14:00 | F94: 0.21 | G94: 14606 | H94: United Kingdom | I94: 0.21 | J94: 14.214 | K94: 0.04173787417
A95: 498389 | B95: 17003 | C95: BROCADE RING PURSE | D95: 1 | E95: 2010-02-18T14:43:00 | F95: 0.21 | G95: 14606 | H95: United Kingdom | I95: 0.21 | J95: 14.424 | K95: 0.04235451646
A96: 498765 | B96: 84568 | C96: GIRLS ALPHABET IRON ON PATCHES | D96: 1 | E96: 2010-02-23T09:37:00 | F96: 0.21 | G96: 12755 | H96: Japan | I96: 0.21 | J96: 14.634 | K96: 0.04297115876
A97: 499764 | B97: 16237 | C97: SLEEPING CAT ERASERS | D97: 1 | E97: 2010-03-02T13:09:00 | F97: 0.21 | G97: 17372 | H97: United Kingdom | I97: 0.21 | J97: 14.844 | K97: 0.04358780105
A98: 501853 | B98: 16237 | C98: SLEEPING CAT ERASERS | D98: 1 | E98: 2010-03-21T11:07:00 | F98: 0.21 | G98: 16782 | H98: United Kingdom | I98: 0.21 | J98: 15.054 | K98: 0.04420444335
A99: 502841 | B99: 84077 | C99: WORLD WAR 2 GLIDERS ASSTD DESIGNS | D99: 1 | E99: 2010-03-28T13:21:00 | F99: 0.21 | G99: 18283 | H99: United Kingdom | I99: 0.21 | J99: 15.264 | K99: 0.04482108564
A100: 503956 | B100: 84077 | C100: WORLD WAR 2 GLIDERS ASSTD DESIGNS | D100: 1 | E100: 2010-04-08T16:45:00 | F100: 0.21 | G100: 13443 | H100: United Kingdom | I100: 0.21 | J100: 15.474 | K100: 0.04543772794
A101: 504901 | B101: 44234 | C101: ASSORTED CIRCULAR MOBILE | D101: 1 | E101: 2010-04-18T15:34:00 | F101: 0.21 | G101: 16921 | H101: United Kingdom | I101: 0.21 | J101: 15.684 | K101: 0.04605437023
A102: 505018 | B102: 72708 | C102: SCULPTED ROUND IVORY CANDLE | D102: 1 | E102: 2010-04-19T14:08:00 | F102: 0.21 | G102: 15451 | H102: United Kingdom | I102: 0.21 | J102: 15.894 | K102: 0.04667101253
A103: 505067 | B103: 16237 | C103: SLEEPING CAT ERASERS | D103: 1 | E103: 2010-04-19T16:48:00 | F103: 0.21 | G103: 14606 | H103: United Kingdom | I103: 0.21 | J103: 16.104 | K103: 0.04728765482
A104: 505202 | B104: 21829 | C104: DINOSAUR KEYRINGS ASSORTED | D104: 1 | E104: 2010-04-20T16:21:00 | F104: 0.21 | H104: United Kingdom | I104: 0.21 | J104: 16.314 | K104: 0.04790429712
A105: 506556 | B105: 17096 | C105: ASSORTED LAQUERED INCENSE HOLDERS | D105: 1 | E105: 2010-04-30T11:28:00 | F105: 0.21 | G105: 14994 | H105: United Kingdom | I105: 0.21 | J105: 16.524 | K105: 0.04852093941
A106: 506556 | B106: 17096 | C106: ASSORTED LAQUERED INCENSE HOLDERS | D106: 1 | E106: 2010-04-30T11:28:00 | F106: 0.21 | G106: 14994 | H106: United Kingdom | I106: 0.21 | J106: 16.734 | K106: 0.04913758171
A107: 507838 | B107: 84199 | C107: GLOW IN DARK DOLPHINS | D107: 1 | E107: 2010-05-11T13:30:00 | F107: 0.21 | G107: 15034 | H107: United Kingdom | I107: 0.21 | J107: 16.944 | K107: 0.049754224
A108: 511047 | B108: 84270 | C108: ASSTD DESIGN BUBBLE GUM RING | D108: 1 | E108: 2010-06-06T11:38:00 | F108: 0.21 | G108: 14573 | H108: United Kingdom | I108: 0.21 | J108: 17.154 | K108: 0.05037086629
A109: 511295 | B109: 44234 | C109: ASSORTED CIRCULAR MOBILE | D109: 1 | E109: 2010-06-07T15:05:00 | F109: 0.21 | G109: 15551 | H109: United Kingdom | I109: 0.21 | J109: 17.364 | K109: 0.05098750859
A110: 511970 | B110: 17003 | C110: BROCADE RING PURSE | D110: 1 | E110: 2010-06-11T13:59:00 | F110: 0.21 | G110: 18022 | H110: United Kingdom | I110: 0.21 | J110: 17.574 | K110: 0.05160415088
A111: 515916 | B111: 17096 | C111: ASSORTED LAQUERED INCENSE HOLDERS | D111: 1 | E111: 2010-07-15T13:32:00 | F111: 0.21 | G111: 15542 | H111: United Kingdom | I111: 0.21 | J111: 17.784 | K111: 0.05222079318
A112: 515916 | B112: 17096 | C112: ASSORTED LAQUERED INCENSE HOLDERS | D112: 1 | E112: 2010-07-15T13:32:00 | F112: 0.21 | G112: 15542 | H112: United Kingdom | I112: 0.21 | J112: 17.994 | K112: 0.05283743547
A113: 515987 | B113: 84077 | C113: WORLD WAR 2 GLIDERS ASSTD DESIGNS | D113: 1 | E113: 2010-07-16T08:20:00 | F113: 0.21 | H113: United Kingdom | I113: 0.21 | J113: 18.204 | K113: 0.05345407777
A114: 517555 | B114: 16237 | C114: SLEEPING CAT ERASERS | D114: 1 | E114: 2010-07-29T19:18:00 | F114: 0.21 | G114: 15998 | H114: United Kingdom | I114: 0.21 | J114: 18.414 | K114: 0.05407072006
A115: 517743 | B115: 16236 | C115: KITTY PENCIL ERASERS | D115: 1 | E115: 2010-08-01T15:51:00 | F115: 0.21 | G115: 17984 | H115: United Kingdom | I115: 0.21 | J115: 18.624 | K115: 0.05468736236
A116: 518769 | B116: 84077 | C116: WORLD WAR 2 GLIDERS ASSTD DESIGNS | D116: 1 | E116: 2010-08-11T15:13:00 | F116: 0.21 | G116: 14736 | H116: United Kingdom | I116: 0.21 | J116: 18.834 | K116: 0.05530400465
A117: 519600 | B117: 84199 | C117: GLOW IN DARK DOLPHINS | D117: 1 | E117: 2010-08-18T15:47:00 | F117: 0.21 | G117: 15353 | H117: United Kingdom | I117: 0.21 | J117: 19.044 | K117: 0.05592064695
A118: 519600 | B118: 84199 | C118: GLOW IN DARK DOLPHINS | D118: 1 | E118: 2010-08-18T15:47:00 | F118: 0.21 | G118: 15353 | H118: United Kingdom | I118: 0.21 | J118: 19.254 | K118: 0.05653728924
A119: 520877 | B119: 16236 | C119: KITTY PENCIL ERASERS | D119: 1 | E119: 2010-08-31T15:28:00 | F119: 0.21 | G119: 17346 | H119: United Kingdom | I119: 0.21 | J119: 19.464 | K119: 0.05715393154
A120: 522090 | B120: 44234 | C120: ASSORTED CIRCULAR MOBILE | D120: 1 | E120: 2010-09-12T12:46:00 | F120: 0.21 | G120: 16799 | H120: United Kingdom | I120: 0.21 | J120: 19.674 | K120: 0.05777057383
A121: 522281 | B121: 16237 | C121: SLEEPING CAT ERASERS | D121: 1 | E121: 2010-09-13T12:56:00 | F121: 0.21 | G121: 16374 | H121: United Kingdom | I121: 0.21 | J121: 19.884 | K121: 0.05838721612
A122: 522327 | B122: 16237 | C122: SLEEPING CAT ERASERS | D122: 1 | E122: 2010-09-13T16:15:00 | F122: 0.21 | G122: 18069 | H122: United Kingdom | I122: 0.21 | J122: 20.094 | K122: 0.05900385842
A123: 522437 | B123: 16237 | C123: SLEEPING CAT ERASERS | D123: 1 | E123: 2010-09-14T13:56:00 | F123: 0.21 | G123: 17346 | H123: United Kingdom | I123: 0.21 | J123: 20.304 | K123: 0.05962050071
A124: 524508 | B124: 84199 | C124: GLOW IN DARK DOLPHINS | D124: 1 | E124: 2010-09-29T12:41:00 | F124: 0.21 | G124: 13770 | H124: United Kingdom | I124: 0.21 | J124: 20.514 | K124: 0.06023714301
A125: 526268 | B125: 16011 | C125: ANIMAL STICKERS | D125: 1 | E125: 2010-10-11T10:58:00 | F125: 0.21 | G125: 14651 | H125: United Kingdom | I125: 0.21 | J125: 20.724 | K125: 0.0608537853
A126: 526388 | B126: 16237 | C126: SLEEPING CAT ERASERS | D126: 1 | E126: 2010-10-11T12:52:00 | F126: 0.21 | G126: 17264 | H126: United Kingdom | I126: 0.21 | J126: 20.934 | K126: 0.0614704276
A127: 526891 | B127: 84199 | C127: GLOW IN DARK DOLPHINS | D127: 1 | E127: 2010-10-13T14:41:00 | F127: 0.21 | G127: 13832 | H127: United Kingdom | I127: 0.21 | J127: 21.144 | K127: 0.06208706989
A128: 526906 | B128: 84199 | C128: GLOW IN DARK DOLPHINS | D128: 1 | E128: 2010-10-13T15:22:00 | F128: 0.21 | G128: 16120 | H128: United Kingdom | I128: 0.21 | J128: 21.354 | K128: 0.06270371219
A129: 527344 | B129: 84598 | C129: BOYS ALPHABET IRON ON PATCHES | D129: 1 | E129: 2010-10-15T15:38:00 | F129: 0.21 | G129: 13069 | H129: United Kingdom | I129: 0.21 | J129: 21.564 | K129: 0.06332035448
A130: 527890 | B130: 16238 | C130: PARTY TIME PENCIL ERASERS | D130: 1 | E130: 2010-10-19T12:15:00 | F130: 0.21 | G130: 17365 | H130: United Kingdom | I130: 0.21 | J130: 21.774 | K130: 0.06393699678
A131: 527890 | B131: 16236 | C131: KITTY PENCIL ERASERS | D131: 1 | E131: 2010-10-19T12:15:00 | F131: 0.21 | G131: 17365 | H131: United Kingdom | I131: 0.21 | J131: 21.984 | K131: =J131/$J$1 -> 0.06455363907
A132: 528477 | B132: 16237 | C132: SLEEPING CAT ERASERS | D132: 1 | E132: 2010-10-22T12:02:00 | F132: 0.21 | G132: 18022 | H132: United Kingdom | I132: 0.21 | J132: =I132+J131 -> 22.194 | K132: 0.06517028137
A133: 528477 | B133: 16238 | C133: PARTY TIME PENCIL ERASERS | D133: 1 | E133: 2010-10-22T12:02:00 | F133: 0.21 | G133: 18022 | H133: United Kingdom | I133: 0.21 | J133: 22.404 | K133: 0.06578692366
A134: 528477 | B134: 16236 | C134: KITTY PENCIL ERASERS | D134: 1 | E134: 2010-10-22T12:02:00 | F134: 0.21 | G134: 18022 | H134: United Kingdom | I134: 0.21 | J134: 22.614 | K134: 0.06640356595
A135: 528694 | B135: 84199 | C135: GLOW IN DARK DOLPHINS | D135: 1 | E135: 2010-10-24T13:01:00 | F135: 0.21 | G135: 15059 | H135: United Kingdom | I135: 0.21 | J135: 22.824 | K135: 0.06702020825
A136: 529981 | B136: 21829 | C136: DINOSAUR KEYRINGS ASSORTED | D136: 1 | E136: 2010-10-31T15:31:00 | F136: 0.21 | G136: 16686 | H136: United Kingdom | I136: 0.21 | J136: 23.034 | K136: 0.06763685054
A137: 530115 | B137: 84199 | C137: GLOW IN DARK DOLPHINS | D137: 1 | E137: 2010-11-01T14:22:00 | F137: 0.21 | G137: 17190 | H137: United Kingdom | I137: 0.21 | J137: 23.244 | K137: 0.06825349284
A138: 530437 | B138: 16237 | C138: SLEEPING CAT ERASERS | D138: 1 | E138: 2010-11-03T11:13:00 | F138: 0.21 | G138: 15915 | H138: United Kingdom | I138: 0.21 | J138: 23.454 | K138: 0.06887013513
A139: 530437 | B139: 16235 | C139: RECYCLED PENCIL WITH RABBIT ERASER | D139: 1 | E139: 2010-11-03T11:13:00 | F139: 0.21 | G139: 15915 | H139: United Kingdom | I139: 0.21 | J139: 23.664 | K139: 0.06948677743
A140: 530437 | B140: 16235 | C140: RECYCLED PENCIL WITH RABBIT ERASER | D140: 1 | E140: 2010-11-03T11:13:00 | F140: 0.21 | G140: 15915 | H140: United Kingdom | I140: 0.21 | J140: 23.874 | K140: 0.07010341972
A141: 530437 | B141: M | C141: Manual | D141: 1 | E141: 2010-11-03T11:13:00 | F141: 0.21 | G141: 15915 | H141: United Kingdom | I141: 0.21 | J141: 24.084 | K141: 0.07072006202
A142: 530810 | B142: 16237 | C142: SLEEPING CAT ERASERS | D142: 1 | E142: 2010-11-04T13:03:00 | F142: 0.21 | G142: 16327 | H142: United Kingdom | I142: 0.21 | J142: 24.294 | K142: 0.07133670431
A143: 530810 | B143: 10120 | C143: DOGGY RUBBER | D143: 1 | E143: 2010-11-04T13:03:00 | F143: 0.21 | G143: 16327 | H143: United Kingdom | I143: 0.21 | J143: 24.504 | K143: 0.07195334661
A144: 531435 | B144: 17003 | C144: BROCADE RING PURSE | D144: 1 | E144: 2010-11-08T12:06:00 | F144: 0.21 | G144: 14688 | H144: United Kingdom | I144: 0.21 | J144: 24.714 | K144: 0.0725699889
A145: 531440 | B145: 84199 | C145: GLOW IN DARK DOLPHINS | D145: 1 | E145: 2010-11-08T12:28:00 | F145: 0.21 | G145: 16470 | H145: United Kingdom | I145: 0.21 | J145: 24.924 | K145: 0.0731866312
A146: 531440 | B146: 84199 | C146: GLOW IN DARK DOLPHINS | D146: 1 | E146: 2010-11-08T12:28:00 | F146: 0.21 | G146: 16470 | H146: United Kingdom | I146: 0.21 | J146: 25.134 | K146: 0.07380327349
A147: 532369 | B147: 16236 | C147: KITTY PENCIL ERASERS | D147: 1 | E147: 2010-11-11T17:55:00 | F147: 0.21 | G147: 17862 | H147: United Kingdom | I147: 0.21 | J147: 25.344 | K147: 0.07441991578
A148: 532369 | B148: 16238 | C148: PARTY TIME PENCIL ERASERS | D148: 1 | E148: 2010-11-11T17:55:00 | F148: 0.21 | G148: 17862 | H148: United Kingdom | I148: 0.21 | J148: 25.554 | K148: 0.07503655808
A149: 533133 | B149: 16235 | C149: RECYCLED PENCIL WITH RABBIT ERASER | D149: 1 | E149: 2010-11-16T12:50:00 | F149: 0.21 | G149: 15850 | H149: United Kingdom | I149: 0.21 | J149: 25.764 | K149: 0.07565320037
A150: 533510 | B150: 84199 | C150: GLOW IN DARK DOLPHINS | D150: 1 | E150: 2010-11-17T14:31:00 | F150: 0.21 | G150: 17987 | H150: United Kingdom | I150: 0.21 | J150: 25.974 | K150: 0.07626984267
A151: 533510 | B151: 84199 | C151: GLOW IN DARK DOLPHINS | D151: 1 | E151: 2010-11-17T14:31:00 | F151: 0.21 | G151: 17987 | H151: United Kingdom | I151: 0.21 | J151: 26.184 | K151: 0.07688648496
A152: 533841 | B152: 16237 | C152: SLEEPING CAT ERASERS | D152: 1 | E152: 2010-11-19T11:12:00 | F152: 0.21 | G152: 17269 | H152: United Kingdom | I152: 0.21 | J152: 26.394 | K152: 0.07750312726
A153: 534066 | B153: 16236 | C153: KITTY PENCIL ERASERS | D153: 1 | E153: 2010-11-21T11:28:00 | F153: 0.21 | G153: 17920 | H153: United Kingdom | I153: 0.21 | J153: 26.604 | K153: 0.07811976955
A154: 534902 | B154: 16237 | C154: SLEEPING CAT ERASERS | D154: 1 | E154: 2010-11-24T15:09:00 | F154: 0.21 | G154: 17349 | H154: United Kingdom | I154: 0.21 | J154: 26.814 | K154: 0.07873641185
A155: 535324 | B155: 16237 | C155: SLEEPING CAT ERASERS | D155: 1 | E155: 2010-11-25T15:26:00 | F155: 0.21 | G155: 14482 | H155: United Kingdom | I155: 0.21 | J155: 27.024 | K155: 0.07935305414
A156: 535427 | B156: 10120 | C156: DOGGY RUBBER | D156: 1 | E156: 2010-11-26T12:05:00 | F156: 0.21 | G156: 15872 | H156: United Kingdom | I156: 0.21 | J156: 27.234 | K156: 0.07996969644
A157: 535464 | B157: 16237 | C157: SLEEPING CAT ERASERS | D157: 1 | E157: 2010-11-26T13:16:00 | F157: 0.21 | G157: 17999 | H157: United Kingdom | I157: 0.21 | J157: 27.444 | K157: 0.08058633873
A158: 535464 | B158: 10120 | C158: DOGGY RUBBER | D158: 1 | E158: 2010-11-26T13:16:00 | F158: 0.21 | G158: 17999 | H158: United Kingdom | I158: 0.21 | J158: 27.654 | K158: 0.08120298103
A159: 535464 | B159: 16236 | C159: KITTY PENCIL ERASERS | D159: 1 | E159: 2010-11-26T13:16:00 | F159: 0.21 | G159: 17999 | H159: United Kingdom | I159: 0.21 | J159: 27.864 | K159: 0.08181962332
A160: 535464 | B160: 16238 | C160: PARTY TIME PENCIL ERASERS | D160: 1 | E160: 2010-11-26T13:16:00 | F160: 0.21 | G160: 17999 | H160: United Kingdom | I160: 0.21 | J160: 28.074 | K160: 0.08243626561
A161: 535810 | B161: 16237 | C161: SLEEPING CAT ERASERS | D161: 1 | E161: 2010-11-28T15:14:00 | F161: 0.21 | G161: 16893 | H161: United Kingdom | I161: 0.21 | J161: 28.284 | K161: 0.08305290791
A162: 536863 | B162: 10120 | C162: DOGGY RUBBER | D162: 1 | E162: 2010-12-03T11:19:00 | F162: 0.21 | G162: 17967 | H162: United Kingdom | I162: 0.21 | J162: 28.494 | K162: 0.0836695502
A163: 536863 | B163: 16237 | C163: SLEEPING CAT ERASERS | D163: 1 | E163: 2010-12-03T11:19:00 | F163: 0.21 | G163: 17967 | H163: United Kingdom | I163: 0.21 | J163: 28.704 | K163: 0.0842861925
A164: 536987 | B164: 16237 | C164: SLEEPING CAT ERASERS | D164: 1 | E164: 2010-12-03T14:54:00 | F164: 0.21 | G164: 17198 | H164: United Kingdom | I164: 0.21 | J164: 28.914 | K164: 0.08490283479
A165: 536987 | B165: 16238 | C165: PARTY TIME PENCIL ERASERS | D165: 1 | E165: 2010-12-03T14:54:00 | F165: 0.21 | G165: 17198 | H165: United Kingdom | I165: 0.21 | J165: 29.124 | K165: 0.08551947709
A166: 537023 | B166: 16237 | C166: SLEEPING CAT ERASERS | D166: 1 | E166: 2010-12-03T16:02:00 | F166: 0.21 | G166: 16725 | H166: United Kingdom | I166: 0.21 | J166: 29.334 | K166: 0.08613611938
A167: 493842 | B167: 16045 | C167: POPART WOODEN PENCILS ASST | D167: 2 | E167: 2010-01-07T14:20:00 | F167: 0.12 | H167: United Kingdom | I167: 0.24 | J167: 29.574 | K167: 0.08684085343
A168: 494644 | B168: 16010 | C168: FOLDING CAMPING SCISSOR W/KNIF & S | D168: 2 | E168: 2010-01-17T12:12:00 | F168: 0.12 | G168: 16595 | H168: United Kingdom | I168: 0.24 | J168: 29.814 | K168: 0.08754558748
A169: 499220 | B169: 20668 | C169: DISCO BALL CHRISTMAS DECORATION | D169: 2 | E169: 2010-02-25T11:32:00 | F169: 0.12 | G169: 14606 | H169: United Kingdom | I169: 0.24 | J169: 30.054 | K169: 0.08825032153
A170: 502363 | B170: 20668 | C170: DISCO BALL CHRISTMAS DECORATION | D170: 2 | E170: 2010-03-24T11:19:00 | F170: 0.12 | G170: 14606 | H170: United Kingdom | I170: 0.24 | J170: 30.294 | K170: 0.08895505559
A171: 535810 | B171: 20668 | C171: DISCO BALL CHRISTMAS DECORATION | D171: 2 | E171: 2010-11-28T15:14:00 | F171: 0.12 | G171: 16893 | H171: United Kingdom | I171: 0.24 | J171: 30.534 | K171: 0.08965978964
A172: 503972 | B172: 16050 | C172: TEATIME PENCIL WITH RUBBER | D172: 1 | E172: 2010-04-08T17:44:00 | F172: 0.25 | G172: 17180 | H172: United Kingdom | I172: 0.25 | J172: 30.784 | K172: 0.09039388761
A173: 534887 | B173: 16008 | C173: SMALL FOLDING SCISSOR(POINTED EDGE) | D173: 1 | E173: 2010-11-24T14:55:00 | F173: 0.25 | G173: 16903 | H173: United Kingdom | I173: 0.25 | J173: 31.034 | K173: 0.09112798558
A174: 489640 | B174: 15034 | C174: PAPER POCKET TRAVELING FAN | D174: 2 | E174: 2009-12-01T16:17:00 | F174: 0.14 | G174: 17345 | H174: United Kingdom | I174: 0.28 | J174: 31.314 | K174: 0.0919501753
A175: 495389 | B175: 15034 | C175: PAPER POCKET TRAVELING FAN | D175: 2 | E175: 2010-01-24T15:14:00 | F175: 0.14 | G175: 14044 | H175: United Kingdom | I175: 0.28 | J175: 31.594 | K175: 0.09277236503
A176: 509529 | B176: 15034 | C176: PAPER POCKET TRAVELING FAN | D176: 2 | E176: 2010-05-24T11:47:00 | F176: 0.14 | G176: 14710 | H176: United Kingdom | I176: 0.28 | J176: 31.874 | K176: 0.09359455475
A177: 489787 | B177: 21985 | C177: PACK OF 12 HEARTS DESIGN TISSUES | D177: 1 | E177: 2009-12-02T11:53:00 | F177: 0.29 | G177: 15542 | H177: United Kingdom | I177: 0.29 | J177: 32.164 | K177: 0.0944461084
A178: 489787 | B178: 21985 | C178: PACK OF 12 HEARTS DESIGN TISSUES | D178: 1 | E178: 2009-12-02T11:53:00 | F178: 0.29 | G178: 15542 | H178: United Kingdom | I178: 0.29 | J178: 32.454 | K178: 0.09529766204
A179: 489787 | B179: 21981 | C179: PACK OF 12 WOODLAND TISSUES | D179: 1 | E179: 2009-12-02T11:53:00 | F179: 0.29 | G179: 15542 | H179: United Kingdom | I179: 0.29 | J179: 32.744 | K179: 0.09614921569
A180: 490063 | B180: 21985 | C180: PACK OF 12 HEARTS DESIGN TISSUES | D180: 1 | E180: 2009-12-03T13:49:00 | F180: 0.29 | G180: 17271 | H180: United Kingdom | I180: 0.29 | J180: 33.034 | K180: 0.09700076933
A181: 490403 | B181: 17033 | C181: BROCADE PURSE,SMALL ARCH BUTTON | D181: 1 | E181: 2009-12-06T11:13:00 | F181: 0.29 | G181: 17920 | H181: United Kingdom | I181: 0.29 | J181: 33.324 | K181: 0.09785232298
A182: 490494 | B182: 21984 | C182: PACK OF 12 PINK PAISLEY TISSUES | D182: 1 | E182: 2009-12-06T13:29:00 | F182: 0.29 | G182: 17561 | H182: United Kingdom | I182: 0.29 | J182: 33.614 | K182: 0.09870387662
A183: 492376 | B183: 47013A | C183: WINE BOTTLE DRESSING LT.BLUE | D183: 1 | E183: 2009-12-16T14:59:00 | F183: 0.29 | G183: 17776 | H183: United Kingdom | I183: 0.29 | J183: 33.904 | K183: 0.09955543027
A184: 492376 | B184: 47013C | C184: WINE BOTTLE DRESSING DARK BLUE | D184: 1 | E184: 2009-12-16T14:59:00 | F184: 0.29 | G184: 17776 | H184: United Kingdom | I184: 0.29 | J184: 34.194 | K184: 0.1004069839
A185: 492548 | B185: 21967 | C185: PACK OF 12 SKULL TISSUES | D185: 1 | E185: 2009-12-17T14:14:00 | F185: 0.29 | H185: United Kingdom | I185: 0.29 | J185: 34.484 | K185: 0.1012585376
A186: 492548 | B186: 21982 | C186: PACK OF 12 SUKI TISSUES | D186: 1 | E186: 2009-12-17T14:14:00 | F186: 0.29 | H186: United Kingdom | I186: 0.29 | J186: 34.774 | K186: 0.1021100912
A187: 492686 | B187: 21982 | C187: PACK OF 12 SUKI TISSUES | D187: 1 | E187: 2009-12-17T18:40:00 | F187: 0.29 | H187: United Kingdom | I187: 0.29 | J187: 35.064 | K187: 0.1029616448
A188: 492703 | B188: 72225C | C188: LAVENDER SCENT CAKE CANDLE | D188: 1 | E188: 2009-12-17T19:33:00 | F188: 0.29 | H188: United Kingdom | I188: 0.29 | J188: 35.354 | K188: 0.1038131985
A189: 492820 | B189: 21984 | C189: PACK OF 12 PINK PAISLEY TISSUES | D189: 1 | E189: 2009-12-20T14:40:00 | F189: 0.29 | G189: 14404 | H189: United Kingdom | I189: 0.29 | J189: 35.644 | K189: 0.1046647521
A190: 492820 | B190: 21983 | C190: PACK OF 12 BLUE PAISLEY TISSUES | D190: 1 | E190: 2009-12-20T14:40:00 | F190: 0.29 | G190: 14404 | H190: United Kingdom | I190: 0.29 | J190: 35.934 | K190: 0.1055163058
A191: 492820 | B191: 21980 | C191: PACK OF 12 RED SPOTTY TISSUES | D191: 1 | E191: 2009-12-20T14:40:00 | F191: 0.29 | G191: 14404 | H191: United Kingdom | I191: 0.29 | J191: 36.224 | K191: 0.1063678594
A192: 492820 | B192: 21986 | C192: PACK OF 12 PINK SPOT TISSUES | D192: 1 | E192: 2009-12-20T14:40:00 | F192: 0.29 | G192: 14404 | H192: United Kingdom | I192: 0.29 | J192: 36.514 | K192: 0.1072194131
A193: 494079 | B193: 21980 | C193: PACK OF 12 RED SPOTTY TISSUES | D193: 1 | E193: 2010-01-11T12:19:00 | F193: 0.29 | G193: 12835 | H193: United Kingdom | I193: 0.29 | J193: 36.804 | K193: 0.1080709667
A194: 494079 | B194: 21986 | C194: PACK OF 12 PINK SPOT TISSUES | D194: 1 | E194: 2010-01-11T12:19:00 | F194: 0.29 | G194: 12835 | H194: United Kingdom | I194: 0.29 | J194: 37.094 | K194: 0.1089225204
A195: 494079 | B195: 21984 | C195: PACK OF 12 PINK PAISLEY TISSUES | D195: 1 | E195: 2010-01-11T12:19:00 | F195: 0.29 | G195: 12835 | H195: United Kingdom | I195: 0.29 | J195: 37.384 | K195: =J195/$J$1 -> 0.109774074
A196: 494079 | B196: 21983 | C196: PACK OF 12 BLUE PAISLEY TISSUES | D196: 1 | E196: 2010-01-11T12:19:00 | F196: 0.29 | G196: 12835 | H196: United Kingdom | I196: 0.29 | J196: =I196+J195 -> 37.674 | K196: 0.1106256277
A197: 495013 | B197: 85230B | C197: CINNAMON SCENTED VOTIVE CANDLE | D197: 1 | E197: 2010-01-20T13:07:00 | F197: 0.29 | H197: United Kingdom | I197: 0.29 | J197: 37.964 | K197: 0.1114771813
A198: 495503 | B198: 21983 | C198: PACK OF 12 BLUE PAISLEY TISSUES | D198: 1 | E198: 2010-01-25T12:50:00 | F198: 0.29 | G198: 15858 | H198: United Kingdom | I198: 0.29 | J198: 38.254 | K198: 0.1123287349
A199: 496321 | B199: 21985 | C199: PACK OF 12 HEARTS DESIGN TISSUES | D199: 1 | E199: 2010-01-31T12:43:00 | F199: 0.29 | G199: 16014 | H199: United Kingdom | I199: 0.29 | J199: 38.544 | K199: 0.1131802886
A200: 496321 | B200: 21985 | C200: PACK OF 12 HEARTS DESIGN TISSUES | D200: 1 | E200: 2010-01-31T12:43:00 | F200: 0.29 | G200: 16014 | H200: United Kingdom | I200: 0.29 | J200: 38.834 | K200: 0.1140318422
... 801 more rows

Sheet BlankForTest

Sheet Hidden B2
B2: B2

Sheet Merged
B2: B2
D3: D3:E3
E6: Merged and centred

Sheet 50M cells
A1: Invoice | B1: StockCode | C1: Description | D1: Quantity | E1: InvoiceDate | F1: Price | G1: Customer ID | H1: Country | I1: Amount | J1: =SUM($I:$I) -> 340.554 | K1: Proportion
A2: 494914 | B2: PADS | C2: PADS TO MATCH ALL CUSHIONS | D2: 1 | E2: 2010-01-19T17:04:00 | F2: 0.001 | G2: 16705 | H2: United Kingdom | I2: 0.001 | J2: =I2 -> 0.001 | K2: =J2/$J$1 -> 2.936391879e-06
A3: 496222 | B3: PADS | C3: PADS TO MATCH ALL CUSHIONS | D3: 1 | E3: 2010-01-29T13:53:00 | F3: 0.001 | G3: 13583 | H3: United Kingdom | I3: 0.001 | J3: =I3+J2 -> 0.002 | K3: =J3/$J$1 -> 5.872783758e-06
A4: 496473 | B4: PADS | C4: PADS TO MATCH ALL CUSHIONS | D4: 1 | E4: 2010-02-01T15:38:00 | F4: 0.001 | G4: 17350 | H4: United Kingdom | I4: 0.001 | J4: =I4+J3 -> 0.003 | K4: 8.809175637e-06
A5: 496643 | B5: PADS | C5: PADS TO MATCH ALL CUSHIONS | D5: 1 | E5: 2010-02-03T11:58:00 | F5: 0.001 | G5: 13408 | H5: United Kingdom | I5: 0.001 | J5: 0.004 | K5: 1.174556752e-05
A6: 497935 | B6: PADS | C6: PADS TO MATCH ALL CUSHIONS | D6: 1 | E6: 2010-02-15T10:47:00 | F6: 0.001 | G6: 13408 | H6: United Kingdom | I6: 0.001 | J6: 0.005 | K6: 1.46819594e-05
A7: 498562 | B7: PADS | C7: PADS TO MATCH ALL CUSHIONS | D7: 1 | E7: 2010-02-21T12:03:00 | F7: 0.001 | G7: 15182 | H7: United Kingdom | I7: 0.001 | J7: 0.006 | K7: 1.761835127e-05
A8: 499056 | B8: PADS | C8: PADS TO MATCH ALL CUSHIONS | D8: 1 | E8: 2010-02-24T13:46:00 | F8: 0.001 | G8: 13765 | H8: United Kingdom | I8: 0.001 | J8: 0.007 | K8: 2.055474315e-05
A9: 499399 | B9: PADS | C9: PADS TO MATCH ALL CUSHIONS | D9: 1 | E9: 2010-02-26T13:26:00 | F9: 0.001 | G9: 14459 | H9: United Kingdom | I9: 0.001 | J9: 0.008 | K9: 2.349113503e-05
A10: 501176 | B10: PADS | C10: PADS TO MATCH ALL CUSHIONS | D10: 1 | E10: 2010-03-15T11:00:00 | F10: 0.001 | G10: 14857 | H10: United Kingdom | I10: 0.001 | J10: 0.009 | K10: 2.642752691e-05
A11: 504332 | B11: PADS | C11: PADS TO MATCH ALL CUSHIONS | D11: 1 | E11: 2010-04-12T16:30:00 | F11: 0.001 | G11: 12671 | H11: Germany | I11: 0.001 | J11: 0.01 | K11: 2.936391879e-05
A12: 506303 | B12: PADS | C12: PADS TO MATCH ALL CUSHIONS | D12: 1 | E12: 2010-04-29T10:43:00 | F12: 0.001 | G12: 14249 | H12: United Kingdom | I12: 0.001 | J12: 0.011 | K12: 3.230031067e-05
A13: 522766 | B13: PADS | C13: PADS TO MATCH ALL CUSHIONS | D13: 1 | E13: 2010-09-16T13:58:00 | F13: 0.001 | G13: 15182 | H13: United Kingdom | I13: 0.001 | J13: 0.012 | K13: 3.523670255e-05
A14: 531433 | B14: PADS | C14: PADS TO MATCH ALL CUSHIONS | D14: 1 | E14: 2010-11-08T11:54:00 | F14: 0.001 | G14: 13317 | H14: United Kingdom | I14: 0.001 | J14: 0.013 | K14: 3.817309443e-05
A15: 533528 | B15: PADS | C15: PADS TO MATCH ALL CUSHIONS | D15: 1 | E15: 2010-11-17T15:08:00 | F15: 0.001 | G15: 15750 | H15: United Kingdom | I15: 0.001 | J15: 0.014 | K15: 4.110948631e-05
A16: 490279 | B16: 35015 | C16: JACOBS LADDER SMALL | D16: 1 | E16: 2009-12-04T12:37:00 | F16: 0.06 | G16: 16891 | H16: United Kingdom | I16: 0.06 | J16: 0.074 | K16: 0.0002172929991
A17: 510801 | B17: 35015 | C17: JACOBS LADDER SMALL | D17: 1 | E17: 2010-06-03T17:53:00 | F17: 0.06 | G17: 17290 | H17: United Kingdom | I17: 0.06 | J17: 0.134 | K17: 0.0003934765118
A18: 523773 | B18: 35015 | C18: JACOBS LADDER SMALL | D18: 1 | E18: 2010-09-24T11:11:00 | F18: 0.06 | G18: 17811 | H18: United Kingdom | I18: 0.06 | J18: 0.194 | K18: 0.0005696600245
A19: 508629 | B19: M | C19: Manual | D19: 1 | E19: 2010-05-17T14:21:00 | F19: 0.1 | G19: 13857 | H19: United Kingdom | I19: 0.1 | J19: 0.294 | K19: 0.0008632992125
A20: 494674 | B20: 20668 | C20: DISCO BALL CHRISTMAS DECORATION | D20: 1 | E20: 2010-01-17T16:01:00 | F20: 0.12 | G20: 14606 | H20: United Kingdom | I20: 0.12 | J20: 0.414 | K20: 0.001215666238
A21: 496488 | B21: 20668 | C21: DISCO BALL CHRISTMAS DECORATION | D21: 1 | E21: 2010-02-01T17:16:00 | F21: 0.12 | G21: 14606 | H21: United Kingdom | I21: 0.12 | J21: 0.534 | K21: 0.001568033263
A22: 500933 | B22: 20668 | C22: DISCO BALL CHRISTMAS DECORATION | D22: 1 | E22: 2010-03-11T11:45:00 | F22: 0.12 | G22: 14606 | H22: United Kingdom | I22: 0.12 | J22: 0.654 | K22: 0.001920400289
A23: 516843 | B23: 16033 | C23: MINI HIGHLIGHTER PENS | D23: 1 | E23: 2010-07-23T11:32:00 | F23: 0.12 | G23: 15867 | H23: United Kingdom | I23: 0.12 | J23: 0.774 | K23: 0.002272767314
A24: 511481 | B24: 15034 | C24: PAPER POCKET TRAVELING FAN | D24: 1 | E24: 2010-06-08T14:00:00 | F24: 0.14 | G24: 15353 | H24: United Kingdom | I24: 0.14 | J24: 0.914 | K24: 0.002683862178
A25: 517552 | B25: 15034 | C25: PAPER POCKET TRAVELING FAN | D25: 1 | E25: 2010-07-29T18:49:00 | F25: 0.14 | G25: 13969 | H25: United Kingdom | I25: 0.14 | J25: 1.054 | K25: 0.003094957041
A26: 517577 | B26: 15034 | C26: PAPER POCKET TRAVELING FAN | D26: 1 | E26: 2010-07-30T10:33:00 | F26: 0.14 | H26: United Kingdom | I26: 0.14 | J26: 1.194 | K26: 0.003506051904
A27: 520401 | B27: 15034 | C27: PAPER POCKET TRAVELING FAN | D27: 1 | E27: 2010-08-25T16:58:00 | F27: 0.14 | G27: 16448 | H27: United Kingdom | I27: 0.14 | J27: 1.334 | K27: 0.003917146767
A28: 522711 | B28: 15034 | C28: PAPER POCKET TRAVELING FAN | D28: 1 | E28: 2010-09-16T11:40:00 | F28: 0.14 | G28: 17348 | H28: United Kingdom | I28: 0.14 | J28: 1.474 | K28: 0.00432824163
A29: 537196 | B29: 15034 | C29: PAPER POCKET TRAVELING FAN | D29: 1 | E29: 2010-12-05T13:55:00 | F29: 0.14 | G29: 15426 | H29: United Kingdom | I29: 0.14 | J29: 1.614 | K29: 0.004739336493
A30: 537222 | B30: 15034 | C30: PAPER POCKET TRAVELING FAN | D30: 1 | E30: 2010-12-05T16:00:00 | F30: 0.14 | G30: 14404 | H30: United Kingdom | I30: 0.14 | J30: 1.754 | K30: 0.005150431356
A31: 499970 | B31: 16216 | C31: LETTER SHAPE PENCIL SHARPENER | D31: 1 | E31: 2010-03-03T14:20:00 | F31: 0.16 | H31: United Kingdom | I31: 0.16 | J31: 1.914 | K31: 0.005620254057
A32: 515907 | B32: 16216 | C32: LETTER SHAPE PENCIL SHARPENER | D32: 1 | E32: 2010-07-15T13:13:00 | F32: 0.16 | G32: 13564 | H32: United Kingdom | I32: 0.16 | J32: 2.074 | K32: 0.006090076757
A33: 535590 | B33: 16218 | C33: CARTOON PENCIL SHARPENERS | D33: 1 | E33: 2010-11-26T16:20:00 | F33: 0.16 | G33: 17218 | H33: United Kingdom | I33: 0.16 | J33: 2.234 | K33: 0.006559899458
A34: 513410 | B34: 18007 | C34: ESSENTIAL BALM 3.5g TIN IN ENVELOPE | D34: 1 | E34: 2010-06-24T12:11:00 | F34: 0.18 | G34: 15051 | H34: United Kingdom | I34: 0.18 | J34: 2.414 | K34: 0.007088449996
A35: 521148 | B35: 18007 | C35: ESSENTIAL BALM 3.5g TIN IN ENVELOPE | D35: 1 | E35: 2010-09-02T13:27:00 | F35: 0.18 | G35: 16065 | H35: United Kingdom | I35: 0.18 | J35: 2.594 | K35: 0.007617000534
A36: 531440 | B36: 18007 | C36: ESSENTIAL BALM 3.5g TIN IN ENVELOPE | D36: 1 | E36: 2010-11-08T12:28:00 | F36: 0.18 | G36: 16470 | H36: United Kingdom | I36: 0.18 | J36: 2.774 | K36: 0.008145551073
A37: 533458 | B37: 18007 | C37: ESSENTIAL BALM 3.5g TIN IN ENVELOPE | D37: 1 | E37: 2010-11-17T12:03:00 | F37: 0.18 | G37: 16006 | H37: United Kingdom | I37: 0.18 | J37: 2.954 | K37: 0.008674101611
A38: 533755 | B38: 18007 | C38: ESSENTIAL BALM 3.5g TIN IN ENVELOPE | D38: 1 | E38: 2010-11-18T14:25:00 | F38: 0.18 | G38: 15571 | H38: United Kingdom | I38: 0.18 | J38: 3.134 | K38: 0.009202652149
A39: 535805 | B39: 18007 | C39: ESSENTIAL BALM 3.5g TIN IN ENVELOPE | D39: 1 | E39: 2010-11-28T15:04:00 | F39: 0.18 | G39: 15583 | H39: United Kingdom | I39: 0.18 | J39: 3.314 | K39: 0.009731202687
A40: 535805 | B40: 18007 | C40: ESSENTIAL BALM 3.5g TIN IN ENVELOPE | D40: 1 | E40: 2010-11-28T15:04:00 | F40: 0.18 | G40: 15583 | H40: United Kingdom | I40: 0.18 | J40: 3.494 | K40: 0.01025975323
A41: 537351 | B41: 18007 | C41: ESSENTIAL BALM 3.5g TIN IN ENVELOPE | D41: 1 | E41: 2010-12-06T12:23:00 | F41: 0.18 | G41: 16898 | H41: United Kingdom | I41: 0.18 | J41: 3.674 | K41: 0.01078830376
A42: 489824 | B42: 47420 | C42: ASSORTED COLOUR SUCTION CUP HOOK | D42: 1 | E42: 2009-12-02T13:33:00 | F42: 0.19 | G42: 16797 | H42: United Kingdom | I42: 0.19 | J42: 3.864 | K42: 0.01134621822
A43: 490494 | B43: 84206A | C43: 3 BLACK CATS W HEARTS BLANK CARD | D43: 1 | E43: 2009-12-06T13:29:00 | F43: 0.19 | G43: 17561 | H43: United Kingdom | I43: 0.19 | J43: 4.054 | K43: 0.01190413268
A44: 490494 | B44: 84206C | C44: CHAMPAGNE TRAY BLANK CARD | D44: 1 | E44: 2009-12-06T13:29:00 | F44: 0.19 | G44: 17561 | H44: United Kingdom | I44: 0.19 | J44: 4.244 | K44: 0.01246204713
A45: 492176 | B45: 35271S | C45: GOLD PRINT PAPER BAG | D45: 1 | E45: 2009-12-15T15:21:00 | F45: 0.19 | G45: 17841 | H45: United Kingdom | I45: 0.19 | J45: 4.434 | K45: 0.01301996159
A46: 492593 | B46: 16258A | C46: SWIRLY CIRCULAR RUBBERS IN BAG | D46: 1 | E46: 2009-12-17T15:44:00 | F46: 0.19 | G46: 15917 | H46: United Kingdom | I46: 0.19 | J46: 4.624 | K46: 0.01357787605
A47: 492593 | B47: 35633B | C47: BLUE TINSEL GARLAND | D47: 1 | E47: 2009-12-17T15:44:00 | F47: 0.19 | G47: 15917 | H47: United Kingdom | I47: 0.19 | J47: 4.814 | K47: 0.01413579051
A48: 492659 | B48: 35633B | C48: BLUE TINSEL GARLAND | D48: 1 | E48: 2009-12-17T17:54:00 | F48: 0.19 | G48: 16720 | H48: United Kingdom | I48: 0.19 | J48: 5.004 | K48: 0.01469370496
A49: 498160 | B49: 35607A | C49: PINK FLUFFY CHRISTMAS DECORATION | D49: 1 | E49: 2010-02-17T11:58:00 | F49: 0.19 | G49: 15911 | H49: United Kingdom | I49: 0.19 | J49: 5.194 | K49: 0.01525161942
A50: 498578 | B50: 72232 | C50: FENG SHUI PILLAR CANDLE | D50: 1 | E50: 2010-02-21T14:18:00 | F50: 0.19 | G50: 13980 | H50: United Kingdom | I50: 0.19 | J50: 5.384 | K50: 0.01580953388
A51: 508627 | B51: 84206C | C51: CHAMPAGNE TRAY BLANK CARD | D51: 1 | E51: 2010-05-17T14:15:00 | F51: 0.19 | G51: 16932 | H51: United Kingdom | I51: 0.19 | J51: 5.574 | K51: 0.01636744833
A52: 515569 | B52: 35607A | C52: PINK FLUFFY CHRISTMAS DECORATION | D52: 1 | E52: 2010-07-13T12:33:00 | F52: 0.19 | G52: 14461 | H52: United Kingdom | I52: 0.19 | J52: 5.764 | K52: 0.01692536279
A53: 517723 | B53: 46115B | C53: GREEN POP ART MAO CUSHION COVER | D53: 1 | E53: 2010-08-01T12:48:00 | F53: 0.19 | G53: 14878 | H53: United Kingdom | I53: 0.19 | J53: 5.954 | K53: 0.01748327725
A54: 517723 | B54: 84251F | C54: GREETING CARD, RITA | D54: 1 | E54: 2010-08-01T12:48:00 | F54: 0.19 | G54: 14878 | H54: United Kingdom | I54: 0.19 | J54: 6.144 | K54: 0.01804119171
A55: 517723 | B55: 84251G | C55: GREETING CARD, OVERCROWDED POOL. | D55: 1 | E55: 2010-08-01T12:48:00 | F55: 0.19 | G55: 14878 | H55: United Kingdom | I55: 0.19 | J55: 6.334 | K55: 0.01859910616
A56: 517723 | B56: 84251G | C56: GREETING CARD, OVERCROWDED POOL. | D56: 1 | E56: 2010-08-01T12:48:00 | F56: 0.19 | G56: 14878 | H56: United Kingdom | I56: 0.19 | J56: 6.524 | K56: 0.01915702062
A57: 517723 | B57: 84251B | C57: GREETING CARD, STICKY GORDON | D57: 1 | E57: 2010-08-01T12:48:00 | F57: 0.19 | G57: 14878 | H57: United Kingdom | I57: 0.19 | J57: 6.714 | K57: 0.01971493508
A58: 519188 | B58: 84251B | C58: GREETING CARD, STICKY GORDON | D58: 1 | E58: 2010-08-13T16:17:00 | F58: 0.19 | G58: 14693 | H58: United Kingdom | I58: 0.19 | J58: 6.904 | K58: 0.02027284953
A59: 519188 | B59: 84251G | C59: GREETING CARD, OVERCROWDED POOL. | D59: 1 | E59: 2010-08-13T16:17:00 | F59: 0.19 | G59: 14693 | H59: United Kingdom | I59: 0.19 | J59: 7.094 | K59: 0.02083076399
A60: 519188 | B60: 84251C | C60: GREETING CARD, TWO SISTERS. | D60: 1 | E60: 2010-08-13T16:17:00 | F60: 0.19 | G60: 14693 | H60: United Kingdom | I60: 0.19 | J60: 7.284 | K60: 0.02138867845
A61: 519188 | B61: 84251F | C61: GREETING CARD, RITA | D61: 1 | E61: 2010-08-13T16:17:00 | F61: 0.19 | G61: 14693 | H61: United Kingdom | I61: 0.19 | J61: 7.474 | K61: 0.0219465929
A62: 520207 | B62: 84201B | C62: HAPPY BIRTHDAY CARD STRIPEY TEDDY | D62: 1 | E62: 2010-08-24T16:14:00 | F62: 0.19 | G62: 15666 | H62: United Kingdom | I62: 0.19 | J62: 7.664 | K62: 0.02250450736
A63: 520207 | B63: 84201C | C63: HAPPY BIRTHDAY CARD TEDDY/CAKE | D63: 1 | E63: 2010-08-24T16:14:00 | F63: 0.19 | G63: 15666 | H63: United Kingdom | I63: 0.19 | J63: 7.854 | K63: 0.02306242182
A64: 522281 | B64: 84251F | C64: GREETING CARD, RITA | D64: 1 | E64: 2010-09-13T12:56:00 | F64: 0.19 | G64: 16374 | H64: United Kingdom | I64: 0.19 | J64: 8.044 | K64: 0.02362033628
A65: 524322 | B65: 47420 | C65: ASSORTED COLOUR SUCTION CUP HOOK | D65: 1 | E65: 2010-09-28T14:33:00 | F65: 0.19 | G65: 16710 | H65: United Kingdom | I65: 0.19 | J65: 8.234 | K65: 0.02417825073
A66: 525856 | B66: 46115B | C66: GREEN POP ART MAO CUSHION COVER | D66: 1 | E66: 2010-10-07T13:05:00 | F66: 0.19 | G66: 13569 | H66: United Kingdom | I66: 0.19 | J66: 8.424 | K66: 0.02473616519
A67: 527065 | B67: 35607A | C67: PINK FLUFFY CHRISTMAS DECORATION | D67: 1 | E67: 2010-10-14T13:57:00 | F67: 0.19 | G67: 17751 | H67: United Kingdom | I67: 0.19 | J67: 8.614 | K67: =J67/$J$1 -> 0.02529407965
A68: 527065 | B68: 35607B | C68: BLACK FEATHER CHRISTMAS DECORATION | D68: 1 | E68: 2010-10-14T13:57:00 | F68: 0.19 | G68: 17751 | H68: United Kingdom | I68: 0.19 | J68: =I68+J67 -> 8.804 | K68: 0.0258519941
A69: 528127 | B69: 84201B | C69: HAPPY BIRTHDAY CARD STRIPEY TEDDY | D69: 1 | E69: 2010-10-20T14:42:00 | F69: 0.19 | H69: United Kingdom | I69: 0.19 | J69: 8.994 | K69: 0.02640990856
A70: 530085 | B70: 35607B | C70: BLACK FEATHER CHRISTMAS DECORATION | D70: 1 | E70: 2010-11-01T13:26:00 | F70: 0.19 | G70: 17315 | H70: United Kingdom | I70: 0.19 | J70: 9.184 | K70: 0.02696782302
A71: 496979 | B71: 22499 | C71: WOODEN UNION JACK BUNTING | D71: 2 | E71: 2010-02-05T09:58:00 | F71: 0.1 | H71: United Kingdom | I71: 0.2 | J71: 9.384 | K71: 0.02755510139
A72: 489571 | B72: 16237 | C72: SLEEPING CAT ERASERS | D72: 1 | E72: 2009-12-01T13:29:00 | F72: 0.21 | G72: 15967 | H72: United Kingdom | I72: 0.21 | J72: 9.594 | K72: 0.02817174369
A73: 489802 | B73: 16235 | C73: RECYCLED PENCIL WITH RABBIT ERASER | D73: 1 | E73: 2009-12-02T12:32:00 | F73: 0.21 | G73: 15581 | H73: United Kingdom | I73: 0.21 | J73: 9.804 | K73: 0.02878838598
A74: 490300 | B74: M | C74: Manual | D74: 1 | E74: 2009-12-04T14:19:00 | F74: 0.21 | G74: 12970 | H74: United Kingdom | I74: 0.21 | J74: 10.014 | K74: 0.02940502828
A75: 490323 | B75: 84199 | C75: GLOW IN DARK DOLPHINS | D75: 1 | E75: 2009-12-04T15:27:00 | F75: 0.21 | G75: 14087 | H75: United Kingdom | I75: 0.21 | J75: 10.224 | K75: 0.03002167057
A76: 490362 | B76: 84199 | C76: GLOW IN DARK DOLPHINS | D76: 1 | E76: 2009-12-04T17:31:00 | F76: 0.21 | G76: 12748 | H76: United Kingdom | I76: 0.21 | J76: 10.434 | K76: 0.03063831287
A77: 490613 | B77: 21829 | C77: DINOSAUR KEYRINGS ASSORTED | D77: 1 | E77: 2009-12-07T11:47:00 | F77: 0.21 | G77: 16768 | H77: United Kingdom | I77: 0.21 | J77: 10.644 | K77: 0.03125495516
A78: 490693 | B78: 16236 | C78: KITTY PENCIL ERASERS | D78: 1 | E78: 2009-12-07T13:59:00 | F78: 0.21 | G78: 14670 | H78: United Kingdom | I78: 0.21 | J78: 10.854 | K78: 0.03187159746
A79: 491435 | B79: 17003 | C79: BROCADE RING PURSE | D79: 1 | E79: 2009-12-11T10:10:00 | F79: 0.21 | G79: 14606 | H79: United Kingdom | I79: 0.21 | J79: 11.064 | K79: 0.03248823975
A80: 491712 | B80: 16236 | C80: KITTY PENCIL ERASERS | D80: 1 | E80: 2009-12-13T15:17:00 | F80: 0.21 | G80: 15562 | H80: United Kingdom | I80: 0.21 | J80: 11.274 | K80: 0.03310488205
A81: 491893 | B81: 44234 | C81: ASSORTED CIRCULAR MOBILE | D81: 1 | E81: 2009-12-14T15:17:00 | F81: 0.21 | G81: 16805 | H81: United Kingdom | I81: 0.21 | J81: 11.484 | K81: 0.03372152434
A82: 492593 | B82: 16236 | C82: KITTY PENCIL ERASERS | D82: 1 | E82: 2009-12-17T15:44:00 | F82: 0.21 | G82: 15917 | H82: United Kingdom | I82: 0.21 | J82: 11.694 | K82: 0.03433816663
A83: 492659 | B83: 84199 | C83: GLOW IN DARK DOLPHINS | D83: 1 | E83: 2009-12-17T17:54:00 | F83: 0.21 | G83: 16720 | H83: United Kingdom | I83: 0.21 | J83: 11.904 | K83: 0.03495480893
A84: 492820 | B84: 84199 | C84: GLOW IN DARK DOLPHINS | D84: 1 | E84: 2009-12-20T14:40:00 | F84: 0.21 | G84: 14404 | H84: United Kingdom | I84: 0.21 | J84: 12.114 | K84: 0.03557145122
A85: 493842 | B85: 10120 | C85: DOGGY RUBBER | D85: 1 | E85: 2010-01-07T14:20:00 | F85: 0.21 | H85: United Kingdom | I85: 0.21 | J85: 12.324 | K85: 0.03618809352
A86: 493974 | B86: 17136A | C86: BLUE STONES ON WIRE FOR CANDLE | D86: 1 | E86: 2010-01-10T11:12:00 | F86: 0.21 | G86: 16787 | H86: United Kingdom | I86: 0.21 | J86: 12.534 | K86: 0.03680473581
A87: 494213 | B87: 16237 | C87: SLEEPING CAT ERASERS | D87: 1 | E87: 2010-01-12T11:40:00 | F87: 0.21 | G87: 17945 | H87: United Kingdom | I87: 0.21 | J87: 12.744 | K87: 0.03742137811
A88: 494359 | B88: 44234 | C88: ASSORTED CIRCULAR MOBILE | D88: 1 | E88: 2010-01-13T15:24:00 | F88: 0.21 | G88: 17962 | H88: United Kingdom | I88: 0.21 | J88: 12.954 | K88: 0.0380380204
A89: 494359 | B89: 44234 | C89: ASSORTED CIRCULAR MOBILE | D89: 1 | E89: 2010-01-13T15:24:00 | F89: 0.21 | G89: 17962 | H89: United Kingdom | I89: 0.21 | J89: 13.164 | K89: 0.0386546627
A90: 494359 | B90: 44234 | C90: ASSORTED CIRCULAR MOBILE | D90: 1 | E90: 2010-01-13T15:24:00 | F90: 0.21 | G90: 17962 | H90: United Kingdom | I90: 0.21 | J90: 13.374 | K90: 0.03927130499
A91: 495193 | B91: 17003 | C91: BROCADE RING PURSE | D91: 1 | E91: 2010-01-21T15:02:00 | F91: 0.21 | G91: 14606 | H91: United Kingdom | I91: 0.21 | J91: 13.584 | K91: 0.03988794729
A92: 495921 | B92: 17136A | C92: BLUE STONES ON WIRE FOR CANDLE | D92: 1 | E92: 2010-01-27T14:03:00 | F92: 0.21 | G92: 15311 | H92: United Kingdom | I92: 0.21 | J92: 13.794 | K92: 0.04050458958
A93: 496301 | B93: 16236 | C93: KITTY PENCIL ERASERS | D93: 1 | E93: 2010-01-31T11:01:00 | F93: 0.21 | G93: 16718 | H93: United Kingdom | I93: 0.21 | J93: 14.004 | K93: 0.04112123188
A94: 497501 | B94: 17003 | C94: BROCADE RING PURSE | D94: 1 | E94: 2010-02-10T11:14:00 | F94: 0.21 | G94: 14606 | H94: United Kingdom | I94: 0.21 | J94: 14.214 | K94: 0.04173787417
A95: 498389 | B95: 17003 | C95: BROCADE RING PURSE | D95: 1 | E95: 2010-02-18T14:43:00 | F95: 0.21 | G95: 14606 | H95: United Kingdom | I95: 0.21 | J95: 14.424 | K95: 0.04235451646
A96: 498765 | B96: 84568 | C96: GIRLS ALPHABET IRON ON PATCHES | D96: 1 | E96: 2010-02-23T09:37:00 | F96: 0.21 | G96: 12755 | H96: Japan | I96: 0.21 | J96: 14.634 | K96: 0.04297115876
A97: 499764 | B97: 16237 | C97: SLEEPING CAT ERASERS | D97: 1 | E97: 2010-03-02T13:09:00 | F97: 0.21 | G97: 17372 | H97: United Kingdom | I97: 0.21 | J97: 14.844 | K97: 0.04358780105
A98: 501853 | B98: 16237 | C98: SLEEPING CAT ERASERS | D98: 1 | E98: 2010-03-21T11:07:00 | F98: 0.21 | G98: 16782 | H98: United Kingdom | I98: 0.21 | J98: 15.054 | K98: 0.04420444335
A99: 502841 | B99: 84077 | C99: WORLD WAR 2 GLIDERS ASSTD DESIGNS | D99: 1 | E99: 2010-03-28T13:21:00 | F99: 0.21 | G99: 18283 | H99: United Kingdom | I99: 0.21 | J99: 15.264 | K99: 0.04482108564
A100: 503956 | B100: 84077 | C100: WORLD WAR 2 GLIDERS ASSTD DESIGNS | D100: 1 | E100: 2010-04-08T16:45:00 | F100: 0.21 | G100: 13443 | H100: United Kingdom | I100: 0.21 | J100: 15.474 | K100: 0.04543772794
A101: 504901 | B101: 44234 | C101: ASSORTED CIRCULAR MOBILE | D101: 1 | E101: 2010-04-18T15:34:00 | F101: 0.21 | G101: 16921 | H101: United Kingdom | I101: 0.21 | J101: 15.684 | K101: 0.04605437023
A102: 505018 | B102: 72708 | C102: SCULPTED ROUND IVORY CANDLE | D102: 1 | E102: 2010-04-19T14:08:00 | F102: 0.21 | G102: 15451 | H102: United Kingdom | I102: 0.21 | J102: 15.894 | K102: 0.04667101253
A103: 505067 | B103: 16237 | C103: SLEEPING CAT ERASERS | D103: 1 | E103: 2010-04-19T16:48:00 | F103: 0.21 | G103: 14606 | H103: United Kingdom | I103: 0.21 | J103: 16.104 | K103: 0.04728765482
A104: 505202 | B104: 21829 | C104: DINOSAUR KEYRINGS ASSORTED | D104: 1 | E104: 2010-04-20T16:21:00 | F104: 0.21 | H104: United Kingdom | I104: 0.21 | J104: 16.314 | K104: 0.04790429712
A105: 506556 | B105: 17096 | C105: ASSORTED LAQUERED INCENSE HOLDERS | D105: 1 | E105: 2010-04-30T11:28:00 | F105: 0.21 | G105: 14994 | H105: United Kingdom | I105: 0.21 | J105: 16.524 | K105: 0.04852093941
A106: 506556 | B106: 17096 | C106: ASSORTED LAQUERED INCENSE HOLDERS | D106: 1 | E106: 2010-04-30T11:28:00 | F106: 0.21 | G106: 14994 | H106: United Kingdom | I106: 0.21 | J106: 16.734 | K106: 0.04913758171
A107: 507838 | B107: 84199 | C107: GLOW IN DARK DOLPHINS | D107: 1 | E107: 2010-05-11T13:30:00 | F107: 0.21 | G107: 15034 | H107: United Kingdom | I107: 0.21 | J107: 16.944 | K107: 0.049754224
A108: 511047 | B108: 84270 | C108: ASSTD DESIGN BUBBLE GUM RING | D108: 1 | E108: 2010-06-06T11:38:00 | F108: 0.21 | G108: 14573 | H108: United Kingdom | I108: 0.21 | J108: 17.154 | K108: 0.05037086629
A109: 511295 | B109: 44234 | C109: ASSORTED CIRCULAR MOBILE | D109: 1 | E109: 2010-06-07T15:05:00 | F109: 0.21 | G109: 15551 | H109: United Kingdom | I109: 0.21 | J109: 17.364 | K109: 0.05098750859
A110: 511970 | B110: 17003 | C110: BROCADE RING PURSE | D110: 1 | E110: 2010-06-11T13:59:00 | F110: 0.21 | G110: 18022 | H110: United Kingdom | I110: 0.21 | J110: 17.574 | K110: 0.05160415088
A111: 515916 | B111: 17096 | C111: ASSORTED LAQUERED INCENSE HOLDERS | D111: 1 | E111: 2010-07-15T13:32:00 | F111: 0.21 | G111: 15542 | H111: United Kingdom | I111: 0.21 | J111: 17.784 | K111: 0.05222079318
A112: 515916 | B112: 17096 | C112: ASSORTED LAQUERED INCENSE HOLDERS | D112: 1 | E112: 2010-07-15T13:32:00 | F112: 0.21 | G112: 15542 | H112: United Kingdom | I112: 0.21 | J112: 17.994 | K112: 0.05283743547
A113: 515987 | B113: 84077 | C113: WORLD WAR 2 GLIDERS ASSTD DESIGNS | D113: 1 | E113: 2010-07-16T08:20:00 | F113: 0.21 | H113: United Kingdom | I113: 0.21 | J113: 18.204 | K113: 0.05345407777
A114: 517555 | B114: 16237 | C114: SLEEPING CAT ERASERS | D114: 1 | E114: 2010-07-29T19:18:00 | F114: 0.21 | G114: 15998 | H114: United Kingdom | I114: 0.21 | J114: 18.414 | K114: 0.05407072006
A115: 517743 | B115: 16236 | C115: KITTY PENCIL ERASERS | D115: 1 | E115: 2010-08-01T15:51:00 | F115: 0.21 | G115: 17984 | H115: United Kingdom | I115: 0.21 | J115: 18.624 | K115: 0.05468736236
A116: 518769 | B116: 84077 | C116: WORLD WAR 2 GLIDERS ASSTD DESIGNS | D116: 1 | E116: 2010-08-11T15:13:00 | F116: 0.21 | G116: 14736 | H116: United Kingdom | I116: 0.21 | J116: 18.834 | K116: 0.05530400465
A117: 519600 | B117: 84199 | C117: GLOW IN DARK DOLPHINS | D117: 1 | E117: 2010-08-18T15:47:00 | F117: 0.21 | G117: 15353 | H117: United Kingdom | I117: 0.21 | J117: 19.044 | K117: 0.05592064695
A118: 519600 | B118: 84199 | C118: GLOW IN DARK DOLPHINS | D118: 1 | E118: 2010-08-18T15:47:00 | F118: 0.21 | G118: 15353 | H118: United Kingdom | I118: 0.21 | J118: 19.254 | K118: 0.05653728924
A119: 520877 | B119: 16236 | C119: KITTY PENCIL ERASERS | D119: 1 | E119: 2010-08-31T15:28:00 | F119: 0.21 | G119: 17346 | H119: United Kingdom | I119: 0.21 | J119: 19.464 | K119: 0.05715393154
A120: 522090 | B120: 44234 | C120: ASSORTED CIRCULAR MOBILE | D120: 1 | E120: 2010-09-12T12:46:00 | F120: 0.21 | G120: 16799 | H120: United Kingdom | I120: 0.21 | J120: 19.674 | K120: 0.05777057383
A121: 522281 | B121: 16237 | C121: SLEEPING CAT ERASERS | D121: 1 | E121: 2010-09-13T12:56:00 | F121: 0.21 | G121: 16374 | H121: United Kingdom | I121: 0.21 | J121: 19.884 | K121: 0.05838721612
A122: 522327 | B122: 16237 | C122: SLEEPING CAT ERASERS | D122: 1 | E122: 2010-09-13T16:15:00 | F122: 0.21 | G122: 18069 | H122: United Kingdom | I122: 0.21 | J122: 20.094 | K122: 0.05900385842
A123: 522437 | B123: 16237 | C123: SLEEPING CAT ERASERS | D123: 1 | E123: 2010-09-14T13:56:00 | F123: 0.21 | G123: 17346 | H123: United Kingdom | I123: 0.21 | J123: 20.304 | K123: 0.05962050071
A124: 524508 | B124: 84199 | C124: GLOW IN DARK DOLPHINS | D124: 1 | E124: 2010-09-29T12:41:00 | F124: 0.21 | G124: 13770 | H124: United Kingdom | I124: 0.21 | J124: 20.514 | K124: 0.06023714301
A125: 526268 | B125: 16011 | C125: ANIMAL STICKERS | D125: 1 | E125: 2010-10-11T10:58:00 | F125: 0.21 | G125: 14651 | H125: United Kingdom | I125: 0.21 | J125: 20.724 | K125: 0.0608537853
A126: 526388 | B126: 16237 | C126: SLEEPING CAT ERASERS | D126: 1 | E126: 2010-10-11T12:52:00 | F126: 0.21 | G126: 17264 | H126: United Kingdom | I126: 0.21 | J126: 20.934 | K126: 0.0614704276
A127: 526891 | B127: 84199 | C127: GLOW IN DARK DOLPHINS | D127: 1 | E127: 2010-10-13T14:41:00 | F127: 0.21 | G127: 13832 | H127: United Kingdom | I127: 0.21 | J127: 21.144 | K127: 0.06208706989
A128: 526906 | B128: 84199 | C128: GLOW IN DARK DOLPHINS | D128: 1 | E128: 2010-10-13T15:22:00 | F128: 0.21 | G128: 16120 | H128: United Kingdom | I128: 0.21 | J128: 21.354 | K128: 0.06270371219
A129: 527344 | B129: 84598 | C129: BOYS ALPHABET IRON ON PATCHES | D129: 1 | E129: 2010-10-15T15:38:00 | F129: 0.21 | G129: 13069 | H129: United Kingdom | I129: 0.21 | J129: 21.564 | K129: 0.06332035448
A130: 527890 | B130: 16238 | C130: PARTY TIME PENCIL ERASERS | D130: 1 | E130: 2010-10-19T12:15:00 | F130: 0.21 | G130: 17365 | H130: United Kingdom | I130: 0.21 | J130: 21.774 | K130: 0.06393699678
A131: 527890 | B131: 16236 | C131: KITTY PENCIL ERASERS | D131: 1 | E131: 2010-10-19T12:15:00 | F131: 0.21 | G131: 17365 | H131: United Kingdom | I131: 0.21 | J131: 21.984 | K131: =J131/$J$1 -> 0.06455363907
A132: 528477 | B132: 16237 | C132: SLEEPING CAT ERASERS | D132: 1 | E132: 2010-10-22T12:02:00 | F132: 0.21 | G132: 18022 | H132: United Kingdom | I132: 0.21 | J132: =I132+J131 -> 22.194 | K132: 0.06517028137
A133: 528477 | B133: 16238 | C133: PARTY TIME PENCIL ERASERS | D133: 1 | E133: 2010-10-22T12:02:00 | F133: 0.21 | G133: 18022 | H133: United Kingdom | I133: 0.21 | J133: 22.404 | K133: 0.06578692366
A134: 528477 | B134: 16236 | C134: KITTY PENCIL ERASERS | D134: 1 | E134: 2010-10-22T12:02:00 | F134: 0.21 | G134: 18022 | H134: United Kingdom | I134: 0.21 | J134: 22.614 | K134: 0.06640356595
A135: 528694 | B135: 84199 | C135: GLOW IN DARK DOLPHINS | D135: 1 | E135: 2010-10-24T13:01:00 | F135: 0.21 | G135: 15059 | H135: United Kingdom | I135: 0.21 | J135: 22.824 | K135: 0.06702020825
A136: 529981 | B136: 21829 | C136: DINOSAUR KEYRINGS ASSORTED | D136: 1 | E136: 2010-10-31T15:31:00 | F136: 0.21 | G136: 16686 | H136: United Kingdom | I136: 0.21 | J136: 23.034 | K136: 0.06763685054
A137: 530115 | B137: 84199 | C137: GLOW IN DARK DOLPHINS | D137: 1 | E137: 2010-11-01T14:22:00 | F137: 0.21 | G137: 17190 | H137: United Kingdom | I137: 0.21 | J137: 23.244 | K137: 0.06825349284
A138: 530437 | B138: 16237 | C138: SLEEPING CAT ERASERS | D138: 1 | E138: 2010-11-03T11:13:00 | F138: 0.21 | G138: 15915 | H138: United Kingdom | I138: 0.21 | J138: 23.454 | K138: 0.06887013513
A139: 530437 | B139: 16235 | C139: RECYCLED PENCIL WITH RABBIT ERASER | D139: 1 | E139: 2010-11-03T11:13:00 | F139: 0.21 | G139: 15915 | H139: United Kingdom | I139: 0.21 | J139: 23.664 | K139: 0.06948677743
A140: 530437 | B140: 16235 | C140: RECYCLED PENCIL WITH RABBIT ERASER | D140: 1 | E140: 2010-11-03T11:13:00 | F140: 0.21 | G140: 15915 | H140: United Kingdom | I140: 0.21 | J140: 23.874 | K140: 0.07010341972
A141: 530437 | B141: M | C141: Manual | D141: 1 | E141: 2010-11-03T11:13:00 | F141: 0.21 | G141: 15915 | H141: United Kingdom | I141: 0.21 | J141: 24.084 | K141: 0.07072006202
A142: 530810 | B142: 16237 | C142: SLEEPING CAT ERASERS | D142: 1 | E142: 2010-11-04T13:03:00 | F142: 0.21 | G142: 16327 | H142: United Kingdom | I142: 0.21 | J142: 24.294 | K142: 0.07133670431
A143: 530810 | B143: 10120 | C143: DOGGY RUBBER | D143: 1 | E143: 2010-11-04T13:03:00 | F143: 0.21 | G143: 16327 | H143: United Kingdom | I143: 0.21 | J143: 24.504 | K143: 0.07195334661
A144: 531435 | B144: 17003 | C144: BROCADE RING PURSE | D144: 1 | E144: 2010-11-08T12:06:00 | F144: 0.21 | G144: 14688 | H144: United Kingdom | I144: 0.21 | J144: 24.714 | K144: 0.0725699889
A145: 531440 | B145: 84199 | C145: GLOW IN DARK DOLPHINS | D145: 1 | E145: 2010-11-08T12:28:00 | F145: 0.21 | G145: 16470 | H145: United Kingdom | I145: 0.21 | J145: 24.924 | K145: 0.0731866312
A146: 531440 | B146: 84199 | C146: GLOW IN DARK DOLPHINS | D146: 1 | E146: 2010-11-08T12:28:00 | F146: 0.21 | G146: 16470 | H146: United Kingdom | I146: 0.21 | J146: 25.134 | K146: 0.07380327349
A147: 532369 | B147: 16236 | C147: KITTY PENCIL ERASERS | D147: 1 | E147: 2010-11-11T17:55:00 | F147: 0.21 | G147: 17862 | H147: United Kingdom | I147: 0.21 | J147: 25.344 | K147: 0.07441991578
A148: 532369 | B148: 16238 | C148: PARTY TIME PENCIL ERASERS | D148: 1 | E148: 2010-11-11T17:55:00 | F148: 0.21 | G148: 17862 | H148: United Kingdom | I148: 0.21 | J148: 25.554 | K148: 0.07503655808
A149: 533133 | B149: 16235 | C149: RECYCLED PENCIL WITH RABBIT ERASER | D149: 1 | E149: 2010-11-16T12:50:00 | F149: 0.21 | G149: 15850 | H149: United Kingdom | I149: 0.21 | J149: 25.764 | K149: 0.07565320037
A150: 533510 | B150: 84199 | C150: GLOW IN DARK DOLPHINS | D150: 1 | E150: 2010-11-17T14:31:00 | F150: 0.21 | G150: 17987 | H150: United Kingdom | I150: 0.21 | J150: 25.974 | K150: 0.07626984267
A151: 533510 | B151: 84199 | C151: GLOW IN DARK DOLPHINS | D151: 1 | E151: 2010-11-17T14:31:00 | F151: 0.21 | G151: 17987 | H151: United Kingdom | I151: 0.21 | J151: 26.184 | K151: 0.07688648496
A152: 533841 | B152: 16237 | C152: SLEEPING CAT ERASERS | D152: 1 | E152: 2010-11-19T11:12:00 | F152: 0.21 | G152: 17269 | H152: United Kingdom | I152: 0.21 | J152: 26.394 | K152: 0.07750312726
A153: 534066 | B153: 16236 | C153: KITTY PENCIL ERASERS | D153: 1 | E153: 2010-11-21T11:28:00 | F153: 0.21 | G153: 17920 | H153: United Kingdom | I153: 0.21 | J153: 26.604 | K153: 0.07811976955
A154: 534902 | B154: 16237 | C154: SLEEPING CAT ERASERS | D154: 1 | E154: 2010-11-24T15:09:00 | F154: 0.21 | G154: 17349 | H154: United Kingdom | I154: 0.21 | J154: 26.814 | K154: 0.07873641185
A155: 535324 | B155: 16237 | C155: SLEEPING CAT ERASERS | D155: 1 | E155: 2010-11-25T15:26:00 | F155: 0.21 | G155: 14482 | H155: United Kingdom | I155: 0.21 | J155: 27.024 | K155: 0.07935305414
A156: 535427 | B156: 10120 | C156: DOGGY RUBBER | D156: 1 | E156: 2010-11-26T12:05:00 | F156: 0.21 | G156: 15872 | H156: United Kingdom | I156: 0.21 | J156: 27.234 | K156: 0.07996969644
A157: 535464 | B157: 16237 | C157: SLEEPING CAT ERASERS | D157: 1 | E157: 2010-11-26T13:16:00 | F157: 0.21 | G157: 17999 | H157: United Kingdom | I157: 0.21 | J157: 27.444 | K157: 0.08058633873
A158: 535464 | B158: 10120 | C158: DOGGY RUBBER | D158: 1 | E158: 2010-11-26T13:16:00 | F158: 0.21 | G158: 17999 | H158: United Kingdom | I158: 0.21 | J158: 27.654 | K158: 0.08120298103
A159: 535464 | B159: 16236 | C159: KITTY PENCIL ERASERS | D159: 1 | E159: 2010-11-26T13:16:00 | F159: 0.21 | G159: 17999 | H159: United Kingdom | I159: 0.21 | J159: 27.864 | K159: 0.08181962332
A160: 535464 | B160: 16238 | C160: PARTY TIME PENCIL ERASERS | D160: 1 | E160: 2010-11-26T13:16:00 | F160: 0.21 | G160: 17999 | H160: United Kingdom | I160: 0.21 | J160: 28.074 | K160: 0.08243626561
A161: 535810 | B161: 16237 | C161: SLEEPING CAT ERASERS | D161: 1 | E161: 2010-11-28T15:14:00 | F161: 0.21 | G161: 16893 | H161: United Kingdom | I161: 0.21 | J161: 28.284 | K161: 0.08305290791
A162: 536863 | B162: 10120 | C162: DOGGY RUBBER | D162: 1 | E162: 2010-12-03T11:19:00 | F162: 0.21 | G162: 17967 | H162: United Kingdom | I162: 0.21 | J162: 28.494 | K162: 0.0836695502
A163: 536863 | B163: 16237 | C163: SLEEPING CAT ERASERS | D163: 1 | E163: 2010-12-03T11:19:00 | F163: 0.21 | G163: 17967 | H163: United Kingdom | I163: 0.21 | J163: 28.704 | K163: 0.0842861925
A164: 536987 | B164: 16237 | C164: SLEEPING CAT ERASERS | D164: 1 | E164: 2010-12-03T14:54:00 | F164: 0.21 | G164: 17198 | H164: United Kingdom | I164: 0.21 | J164: 28.914 | K164: 0.08490283479
A165: 536987 | B165: 16238 | C165: PARTY TIME PENCIL ERASERS | D165: 1 | E165: 2010-12-03T14:54:00 | F165: 0.21 | G165: 17198 | H165: United Kingdom | I165: 0.21 | J165: 29.124 | K165: 0.08551947709
A166: 537023 | B166: 16237 | C166: SLEEPING CAT ERASERS | D166: 1 | E166: 2010-12-03T16:02:00 | F166: 0.21 | G166: 16725 | H166: United Kingdom | I166: 0.21 | J166: 29.334 | K166: 0.08613611938
A167: 493842 | B167: 16045 | C167: POPART WOODEN PENCILS ASST | D167: 2 | E167: 2010-01-07T14:20:00 | F167: 0.12 | H167: United Kingdom | I167: 0.24 | J167: 29.574 | K167: 0.08684085343
A168: 494644 | B168: 16010 | C168: FOLDING CAMPING SCISSOR W/KNIF & S | D168: 2 | E168: 2010-01-17T12:12:00 | F168: 0.12 | G168: 16595 | H168: United Kingdom | I168: 0.24 | J168: 29.814 | K168: 0.08754558748
A169: 499220 | B169: 20668 | C169: DISCO BALL CHRISTMAS DECORATION | D169: 2 | E169: 2010-02-25T11:32:00 | F169: 0.12 | G169: 14606 | H169: United Kingdom | I169: 0.24 | J169: 30.054 | K169: 0.08825032153
A170: 502363 | B170: 20668 | C170: DISCO BALL CHRISTMAS DECORATION | D170: 2 | E170: 2010-03-24T11:19:00 | F170: 0.12 | G170: 14606 | H170: United Kingdom | I170: 0.24 | J170: 30.294 | K170: 0.08895505559
A171: 535810 | B171: 20668 | C171: DISCO BALL CHRISTMAS DECORATION | D171: 2 | E171: 2010-11-28T15:14:00 | F171: 0.12 | G171: 16893 | H171: United Kingdom | I171: 0.24 | J171: 30.534 | K171: 0.08965978964
A172: 503972 | B172: 16050 | C172: TEATIME PENCIL WITH RUBBER | D172: 1 | E172: 2010-04-08T17:44:00 | F172: 0.25 | G172: 17180 | H172: United Kingdom | I172: 0.25 | J172: 30.784 | K172: 0.09039388761
A173: 534887 | B173: 16008 | C173: SMALL FOLDING SCISSOR(POINTED EDGE) | D173: 1 | E173: 2010-11-24T14:55:00 | F173: 0.25 | G173: 16903 | H173: United Kingdom | I173: 0.25 | J173: 31.034 | K173: 0.09112798558
A174: 489640 | B174: 15034 | C174: PAPER POCKET TRAVELING FAN | D174: 2 | E174: 2009-12-01T16:17:00 | F174: 0.14 | G174: 17345 | H174: United Kingdom | I174: 0.28 | J174: 31.314 | K174: 0.0919501753
A175: 495389 | B175: 15034 | C175: PAPER POCKET TRAVELING FAN | D175: 2 | E175: 2010-01-24T15:14:00 | F175: 0.14 | G175: 14044 | H175: United Kingdom | I175: 0.28 | J175: 31.594 | K175: 0.09277236503
A176: 509529 | B176: 15034 | C176: PAPER POCKET TRAVELING FAN | D176: 2 | E176: 2010-05-24T11:47:00 | F176: 0.14 | G176: 14710 | H176: United Kingdom | I176: 0.28 | J176: 31.874 | K176: 0.09359455475
A177: 489787 | B177: 21985 | C177: PACK OF 12 HEARTS DESIGN TISSUES | D177: 1 | E177: 2009-12-02T11:53:00 | F177: 0.29 | G177: 15542 | H177: United Kingdom | I177: 0.29 | J177: 32.164 | K177: 0.0944461084
A178: 489787 | B178: 21985 | C178: PACK OF 12 HEARTS DESIGN TISSUES | D178: 1 | E178: 2009-12-02T11:53:00 | F178: 0.29 | G178: 15542 | H178: United Kingdom | I178: 0.29 | J178: 32.454 | K178: 0.09529766204
A179: 489787 | B179: 21981 | C179: PACK OF 12 WOODLAND TISSUES | D179: 1 | E179: 2009-12-02T11:53:00 | F179: 0.29 | G179: 15542 | H179: United Kingdom | I179: 0.29 | J179: 32.744 | K179: 0.09614921569
A180: 490063 | B180: 21985 | C180: PACK OF 12 HEARTS DESIGN TISSUES | D180: 1 | E180: 2009-12-03T13:49:00 | F180: 0.29 | G180: 17271 | H180: United Kingdom | I180: 0.29 | J180: 33.034 | K180: 0.09700076933
A181: 490403 | B181: 17033 | C181: BROCADE PURSE,SMALL ARCH BUTTON | D181: 1 | E181: 2009-12-06T11:13:00 | F181: 0.29 | G181: 17920 | H181: United Kingdom | I181: 0.29 | J181: 33.324 | K181: 0.09785232298
A182: 490494 | B182: 21984 | C182: PACK OF 12 PINK PAISLEY TISSUES | D182: 1 | E182: 2009-12-06T13:29:00 | F182: 0.29 | G182: 17561 | H182: United Kingdom | I182: 0.29 | J182: 33.614 | K182: 0.09870387662
A183: 492376 | B183: 47013A | C183: WINE BOTTLE DRESSING LT.BLUE | D183: 1 | E183: 2009-12-16T14:59:00 | F183: 0.29 | G183: 17776 | H183: United Kingdom | I183: 0.29 | J183: 33.904 | K183: 0.09955543027
A184: 492376 | B184: 47013C | C184: WINE BOTTLE DRESSING DARK BLUE | D184: 1 | E184: 2009-12-16T14:59:00 | F184: 0.29 | G184: 17776 | H184: United Kingdom | I184: 0.29 | J184: 34.194 | K184: 0.1004069839
A185: 492548 | B185: 21967 | C185: PACK OF 12 SKULL TISSUES | D185: 1 | E185: 2009-12-17T14:14:00 | F185: 0.29 | H185: United Kingdom | I185: 0.29 | J185: 34.484 | K185: 0.1012585376
A186: 492548 | B186: 21982 | C186: PACK OF 12 SUKI TISSUES | D186: 1 | E186: 2009-12-17T14:14:00 | F186: 0.29 | H186: United Kingdom | I186: 0.29 | J186: 34.774 | K186: 0.1021100912
A187: 492686 | B187: 21982 | C187: PACK OF 12 SUKI TISSUES | D187: 1 | E187: 2009-12-17T18:40:00 | F187: 0.29 | H187: United Kingdom | I187: 0.29 | J187: 35.064 | K187: 0.1029616448
A188: 492703 | B188: 72225C | C188: LAVENDER SCENT CAKE CANDLE | D188: 1 | E188: 2009-12-17T19:33:00 | F188: 0.29 | H188: United Kingdom | I188: 0.29 | J188: 35.354 | K188: 0.1038131985
A189: 492820 | B189: 21984 | C189: PACK OF 12 PINK PAISLEY TISSUES | D189: 1 | E189: 2009-12-20T14:40:00 | F189: 0.29 | G189: 14404 | H189: United Kingdom | I189: 0.29 | J189: 35.644 | K189: 0.1046647521
A190: 492820 | B190: 21983 | C190: PACK OF 12 BLUE PAISLEY TISSUES | D190: 1 | E190: 2009-12-20T14:40:00 | F190: 0.29 | G190: 14404 | H190: United Kingdom | I190: 0.29 | J190: 35.934 | K190: 0.1055163058
A191: 492820 | B191: 21980 | C191: PACK OF 12 RED SPOTTY TISSUES | D191: 1 | E191: 2009-12-20T14:40:00 | F191: 0.29 | G191: 14404 | H191: United Kingdom | I191: 0.29 | J191: 36.224 | K191: 0.1063678594
A192: 492820 | B192: 21986 | C192: PACK OF 12 PINK SPOT TISSUES | D192: 1 | E192: 2009-12-20T14:40:00 | F192: 0.29 | G192: 14404 | H192: United Kingdom | I192: 0.29 | J192: 36.514 | K192: 0.1072194131
A193: 494079 | B193: 21980 | C193: PACK OF 12 RED SPOTTY TISSUES | D193: 1 | E193: 2010-01-11T12:19:00 | F193: 0.29 | G193: 12835 | H193: United Kingdom | I193: 0.29 | J193: 36.804 | K193: 0.1080709667
A194: 494079 | B194: 21986 | C194: PACK OF 12 PINK SPOT TISSUES | D194: 1 | E194: 2010-01-11T12:19:00 | F194: 0.29 | G194: 12835 | H194: United Kingdom | I194: 0.29 | J194: 37.094 | K194: 0.1089225204
A195: 494079 | B195: 21984 | C195: PACK OF 12 PINK PAISLEY TISSUES | D195: 1 | E195: 2010-01-11T12:19:00 | F195: 0.29 | G195: 12835 | H195: United Kingdom | I195: 0.29 | J195: 37.384 | K195: =J195/$J$1 -> 0.109774074
A196: 494079 | B196: 21983 | C196: PACK OF 12 BLUE PAISLEY TISSUES | D196: 1 | E196: 2010-01-11T12:19:00 | F196: 0.29 | G196: 12835 | H196: United Kingdom | I196: 0.29 | J196: =I196+J195 -> 37.674 | K196: 0.1106256277
A197: 495013 | B197: 85230B | C197: CINNAMON SCENTED VOTIVE CANDLE | D197: 1 | E197: 2010-01-20T13:07:00 | F197: 0.29 | H197: United Kingdom | I197: 0.29 | J197: 37.964 | K197: 0.1114771813
A198: 495503 | B198: 21983 | C198: PACK OF 12 BLUE PAISLEY TISSUES | D198: 1 | E198: 2010-01-25T12:50:00 | F198: 0.29 | G198: 15858 | H198: United Kingdom | I198: 0.29 | J198: 38.254 | K198: 0.1123287349
A199: 496321 | B199: 21985 | C199: PACK OF 12 HEARTS DESIGN TISSUES | D199: 1 | E199: 2010-01-31T12:43:00 | F199: 0.29 | G199: 16014 | H199: United Kingdom | I199: 0.29 | J199: 38.544 | K199: 0.1131802886
A200: 496321 | B200: 21985 | C200: PACK OF 12 HEARTS DESIGN TISSUES | D200: 1 | E200: 2010-01-31T12:43:00 | F200: 0.29 | G200: 16014 | H200: United Kingdom | I200: 0.29 | J200: 38.834 | K200: 0.1140318422
... 801 more rows

Sheet XFD1M
A1: Invoice | B1: StockCode | C1: Description | D1: Quantity | E1: InvoiceDate | F1: Price | G1: Customer ID | H1: Country | I1: Amount | J1: =SUM($I:$I) -> 340.434 | K1: Proportion
A2: 494914 | B2: PADS | C2: PADS TO MATCH ALL CUSHIONS | D2: 1 | E2: 2010-01-19T17:04:00 | F2: 0.001 | G2: 16705 | H2: United Kingdom | I2: 0.001 | J2: =I2 -> 0.001 | K2: =J2/$J$1 -> 2.937426932e-06
A3: 496222 | B3: PADS | C3: PADS TO MATCH ALL CUSHIONS | D3: 1 | E3: 2010-01-29T13:53:00 | F3: 0.001 | G3: 13583 | H3: United Kingdom | I3: 0.001 | J3: =I3+J2 -> 0.002 | K3: =J3/$J$1 -> 5.874853863e-06
A4: 496473 | B4: PADS | C4: PADS TO MATCH ALL CUSHIONS | D4: 1 | E4: 2010-02-01T15:38:00 | F4: 0.001 | G4: 17350 | H4: United Kingdom | I4: 0.001 | J4: =I4+J3 -> 0.003 | K4: 8.812280795e-06
A5: 496643 | B5: PADS | C5: PADS TO MATCH ALL CUSHIONS | D5: 1 | E5: 2010-02-03T11:58:00 | F5: 0.001 | G5: 13408 | H5: United Kingdom | I5: 0.001 | J5: 0.004 | K5: 1.174970773e-05
A6: 497935 | B6: PADS | C6: PADS TO MATCH ALL CUSHIONS | D6: 1 | E6: 2010-02-15T10:47:00 | F6: 0.001 | G6: 13408 | H6: United Kingdom | I6: 0.001 | J6: 0.005 | K6: 1.468713466e-05
A7: 498562 | B7: PADS | C7: PADS TO MATCH ALL CUSHIONS | D7: 1 | E7: 2010-02-21T12:03:00 | F7: 0.001 | G7: 15182 | H7: United Kingdom | I7: 0.001 | J7: 0.006 | K7: 1.762456159e-05
A8: 499056 | B8: PADS | C8: PADS TO MATCH ALL CUSHIONS | D8: 1 | E8: 2010-02-24T13:46:00 | F8: 0.001 | G8: 13765 | H8: United Kingdom | I8: 0.001 | J8: 0.007 | K8: 2.056198852e-05
A9: 499399 | B9: PADS | C9: PADS TO MATCH ALL CUSHIONS | D9: 1 | E9: 2010-02-26T13:26:00 | F9: 0.001 | G9: 14459 | H9: United Kingdom | I9: 0.001 | J9: 0.008 | K9: 2.349941545e-05
A10: 501176 | B10: PADS | C10: PADS TO MATCH ALL CUSHIONS | D10: 1 | E10: 2010-03-15T11:00:00 | F10: 0.001 | G10: 14857 | H10: United Kingdom | I10: 0.001 | J10: 0.009 | K10: 2.643684238e-05
A11: 504332 | B11: PADS | C11: =SUM(--(INDEX(1:4,N(IF(1,ROW(1:4))),0)<>"")) -> 4 | D11: 1 | E11: 2010-04-12T16:30:00 | F11: 0.001 | G11: 12671 | H11: Germany | I11: 0.001 | J11: 0.01 | K11: 2.937426932e-05
A12: 506303 | B12: PADS | C12: =SUM(--(OFFSET(1:4,ROW(1:4)-1,0,1))>"") ->  | D12: 1 | E12: 2010-04-29T10:43:00 | F12: 0.001 | G12: 14249 | H12: United Kingdom | I12: 0.001 | J12: 0.011 | K12: 3.231169625e-05
A13: 522766 | B13: PADS | D13: 1 | E13: 2010-09-16T13:58:00 | F13: 0.001 | G13: 15182 | H13: United Kingdom | I13: 0.001 | J13: 0.012 | K13: 3.524912318e-05
A14: 531433 | B14: PADS | D14: 1 | E14: 2010-11-08T11:54:00 | F14: 0.001 | G14: 13317 | H14: United Kingdom | I14: 0.001 | J14: 0.013 | K14: 3.818655011e-05
A15: 533528 | B15: PADS | D15: 1 | E15: 2010-11-17T15:08:00 | F15: 0.001 | G15: 15750 | H15: United Kingdom | I15: 0.001 | J15: 0.014 | K15: 4.112397704e-05
A16: 490279 | B16: 35015 | C16: =SUBTOTAL(103,OFFSET(1:4,ROW(1:4)-1,,1)) -> 11 | D16: 1 | E16: 2009-12-04T12:37:00 | F16: 0.06 | G16: 16891 | H16: United Kingdom | I16: 0.06 | J16: 0.074 | K16: 0.0002173695929
A17: 510801 | B17: 35015 | C17: 11 | D17: 1 | E17: 2010-06-03T17:53:00 | F17: 0.06 | G17: 17290 | H17: United Kingdom | I17: 0.06 | J17: 0.134 | K17: 0.0003936152088
A18: 523773 | B18: 35015 | C18: 11 | D18: 1 | E18: 2010-09-24T11:11:00 | F18: 0.06 | G18: 17811 | H18: United Kingdom | I18: 0.06 | J18: 0.194 | K18: 0.0005698608247
A19: 508629 | B19: M | C19: 11 | D19: 1 | E19: 2010-05-17T14:21:00 | F19: 0.1 | G19: 13857 | H19: United Kingdom | I19: 0.1 | J19: 0.294 | K19: 0.0008636035179
A20: =SUM(--(OFFSET(1:4,ROW(1:4)-1,0,1)<>"")) -> 
A21: 496488 | B21: 20668 | C21: DISCO BALL CHRISTMAS DECORATION | D21: 1 | E21: 2010-02-01T17:16:00 | F21: 0.12 | G21: 14606 | H21: United Kingdom | I21: 0.12 | J21: 0.12 | K21: 0.0003524912318
A22: 500933 | B22: 20668 | C22: DISCO BALL CHRISTMAS DECORATION | D22: 1 | E22: 2010-03-11T11:45:00 | F22: 0.12 | G22: 14606 | H22: United Kingdom | I22: 0.12 | J22: 0.24 | K22: 0.0007049824636
A23: 516843 | B23: 16033 | C23: MINI HIGHLIGHTER PENS | D23: 1 | E23: 2010-07-23T11:32:00 | F23: 0.12 | G23: 15867 | H23: United Kingdom | I23: 0.12 | J23: 0.36 | K23: 0.001057473695
A24: 511481 | B24: 15034 | C24: PAPER POCKET TRAVELING FAN | D24: 1 | E24: 2010-06-08T14:00:00 | F24: 0.14 | G24: 15353 | H24: United Kingdom | I24: 0.14 | J24: 0.5 | K24: 0.001468713466
A25: 517552 | B25: 15034 | C25: PAPER POCKET TRAVELING FAN | D25: 1 | E25: 2010-07-29T18:49:00 | F25: 0.14 | G25: 13969 | H25: United Kingdom | I25: 0.14 | J25: 0.64 | K25: 0.001879953236
A26: 517577 | B26: 15034 | C26: PAPER POCKET TRAVELING FAN | D26: 1 | E26: 2010-07-30T10:33:00 | F26: 0.14 | H26: United Kingdom | I26: 0.14 | J26: 0.78 | K26: 0.002291193007
A27: 520401 | B27: 15034 | C27: PAPER POCKET TRAVELING FAN | D27: 1 | E27: 2010-08-25T16:58:00 | F27: 0.14 | G27: 16448 | H27: United Kingdom | I27: 0.14 | J27: 0.92 | K27: 0.002702432777
A28: 522711 | B28: 15034 | C28: PAPER POCKET TRAVELING FAN | D28: 1 | E28: 2010-09-16T11:40:00 | F28: 0.14 | G28: 17348 | H28: United Kingdom | I28: 0.14 | J28: 1.06 | K28: 0.003113672547
A29: 537196 | B29: 15034 | C29: PAPER POCKET TRAVELING FAN | D29: 1 | E29: 2010-12-05T13:55:00 | F29: 0.14 | G29: 15426 | H29: United Kingdom | I29: 0.14 | J29: 1.2 | K29: 0.003524912318
A30: 537222 | B30: 15034 | C30: PAPER POCKET TRAVELING FAN | D30: 1 | E30: 2010-12-05T16:00:00 | F30: 0.14 | G30: 14404 | H30: United Kingdom | I30: 0.14 | J30: 1.34 | K30: 0.003936152088
A31: 499970 | B31: 16216 | C31: LETTER SHAPE PENCIL SHARPENER | D31: 1 | E31: 2010-03-03T14:20:00 | F31: 0.16 | H31: United Kingdom | I31: 0.16 | J31: 1.5 | K31: 0.004406140397
A32: 515907 | B32: 16216 | C32: LETTER SHAPE PENCIL SHARPENER | D32: 1 | E32: 2010-07-15T13:13:00 | F32: 0.16 | G32: 13564 | H32: United Kingdom | I32: 0.16 | J32: 1.66 | K32: 0.004876128706
A33: 535590 | B33: 16218 | C33: CARTOON PENCIL SHARPENERS | D33: 1 | E33: 2010-11-26T16:20:00 | F33: 0.16 | G33: 17218 | H33: United Kingdom | I33: 0.16 | J33: 1.82 | K33: 0.005346117015
A34: 513410 | B34: 18007 | C34: ESSENTIAL BALM 3.5g TIN IN ENVELOPE | D34: 1 | E34: 2010-06-24T12:11:00 | F34: 0.18 | G34: 15051 | H34: United Kingdom | I34: 0.18 | J34: 2 | K34: 0.005874853863
A35: 521148 | B35: 18007 | C35: ESSENTIAL BALM 3.5g TIN IN ENVELOPE | D35: 1 | E35: 2010-09-02T13:27:00 | F35: 0.18 | G35: 16065 | H35: United Kingdom | I35: 0.18 | J35: 2.18 | K35: 0.006403590711
A36: 531440 | B36: 18007 | C36: ESSENTIAL BALM 3.5g TIN IN ENVELOPE | D36: 1 | E36: 2010-11-08T12:28:00 | F36: 0.18 | G36: 16470 | H36: United Kingdom | I36: 0.18 | J36: 2.36 | K36: 0.006932327558
A37: 533458 | B37: 18007 | C37: ESSENTIAL BALM 3.5g TIN IN ENVELOPE | D37: 1 | E37: 2010-11-17T12:03:00 | F37: 0.18 | G37: 16006 | H37: United Kingdom | I37: 0.18 | J37: 2.54 | K37: 0.007461064406
A38: 533755 | B38: 18007 | C38: ESSENTIAL BALM 3.5g TIN IN ENVELOPE | D38: 1 | E38: 2010-11-18T14:25:00 | F38: 0.18 | G38: 15571 | H38: United Kingdom | I38: 0.18 | J38: 2.72 | K38: 0.007989801254
A39: 535805 | B39: 18007 | C39: ESSENTIAL BALM 3.5g TIN IN ENVELOPE | D39: 1 | E39: 2010-11-28T15:04:00 | F39: 0.18 | G39: 15583 | H39: United Kingdom | I39: 0.18 | J39: 2.9 | K39: 0.008518538101
A40: 535805 | B40: 18007 | C40: ESSENTIAL BALM 3.5g TIN IN ENVELOPE | D40: 1 | E40: 2010-11-28T15:04:00 | F40: 0.18 | G40: 15583 | H40: United Kingdom | I40: 0.18 | J40: 3.08 | K40: 0.009047274949
A41: 537351 | B41: 18007 | C41: ESSENTIAL BALM 3.5g TIN IN ENVELOPE | D41: 1 | E41: 2010-12-06T12:23:00 | F41: 0.18 | G41: 16898 | H41: United Kingdom | I41: 0.18 | J41: 3.26 | K41: 0.009576011797
A42: 489824 | B42: 47420 | C42: ASSORTED COLOUR SUCTION CUP HOOK | D42: 1 | E42: 2009-12-02T13:33:00 | F42: 0.19 | G42: 16797 | H42: United Kingdom | I42: 0.19 | J42: 3.45 | K42: 0.01013412291
A43: 490494 | B43: 84206A | C43: 3 BLACK CATS W HEARTS BLANK CARD | D43: 1 | E43: 2009-12-06T13:29:00 | F43: 0.19 | G43: 17561 | H43: United Kingdom | I43: 0.19 | J43: 3.64 | K43: 0.01069223403
A44: 490494 | B44: 84206C | C44: CHAMPAGNE TRAY BLANK CARD | D44: 1 | E44: 2009-12-06T13:29:00 | F44: 0.19 | G44: 17561 | H44: United Kingdom | I44: 0.19 | J44: 3.83 | K44: 0.01125034515
A45: 492176 | B45: 35271S | C45: GOLD PRINT PAPER BAG | D45: 1 | E45: 2009-12-15T15:21:00 | F45: 0.19 | G45: 17841 | H45: United Kingdom | I45: 0.19 | J45: 4.02 | K45: 0.01180845626
A46: 492593 | B46: 16258A | C46: SWIRLY CIRCULAR RUBBERS IN BAG | D46: 1 | E46: 2009-12-17T15:44:00 | F46: 0.19 | G46: 15917 | H46: United Kingdom | I46: 0.19 | J46: 4.21 | K46: 0.01236656738
A47: 492593 | B47: 35633B | C47: BLUE TINSEL GARLAND | D47: 1 | E47: 2009-12-17T15:44:00 | F47: 0.19 | G47: 15917 | H47: United Kingdom | I47: 0.19 | J47: 4.4 | K47: 0.0129246785
A48: 492659 | B48: 35633B | C48: BLUE TINSEL GARLAND | D48: 1 | E48: 2009-12-17T17:54:00 | F48: 0.19 | G48: 16720 | H48: United Kingdom | I48: 0.19 | J48: 4.59 | K48: 0.01348278962
A49: 498160 | B49: 35607A | C49: PINK FLUFFY CHRISTMAS DECORATION | D49: 1 | E49: 2010-02-17T11:58:00 | F49: 0.19 | G49: 15911 | H49: United Kingdom | I49: 0.19 | J49: 4.78 | K49: 0.01404090073
A50: 498578 | B50: 72232 | C50: FENG SHUI PILLAR CANDLE | D50: 1 | E50: 2010-02-21T14:18:00 | F50: 0.19 | G50: 13980 | H50: United Kingdom | I50: 0.19 | J50: 4.97 | K50: 0.01459901185
A51: 508627 | B51: 84206C | C51: CHAMPAGNE TRAY BLANK CARD | D51: 1 | E51: 2010-05-17T14:15:00 | F51: 0.19 | G51: 16932 | H51: United Kingdom | I51: 0.19 | J51: 5.16 | K51: 0.01515712297
A52: 515569 | B52: 35607A | C52: PINK FLUFFY CHRISTMAS DECORATION | D52: 1 | E52: 2010-07-13T12:33:00 | F52: 0.19 | G52: 14461 | H52: United Kingdom | I52: 0.19 | J52: 5.35 | K52: 0.01571523408
A53: 517723 | B53: 46115B | C53: GREEN POP ART MAO CUSHION COVER | D53: 1 | E53: 2010-08-01T12:48:00 | F53: 0.19 | G53: 14878 | H53: United Kingdom | I53: 0.19 | J53: 5.54 | K53: 0.0162733452
A54: 517723 | B54: 84251F | C54: GREETING CARD, RITA | D54: 1 | E54: 2010-08-01T12:48:00 | F54: 0.19 | G54: 14878 | H54: United Kingdom | I54: 0.19 | J54: 5.73 | K54: 0.01683145632
A55: 517723 | B55: 84251G | C55: GREETING CARD, OVERCROWDED POOL. | D55: 1 | E55: 2010-08-01T12:48:00 | F55: 0.19 | G55: 14878 | H55: United Kingdom | I55: 0.19 | J55: 5.92 | K55: 0.01738956743
A56: 517723 | B56: 84251G | C56: GREETING CARD, OVERCROWDED POOL. | D56: 1 | E56: 2010-08-01T12:48:00 | F56: 0.19 | G56: 14878 | H56: United Kingdom | I56: 0.19 | J56: 6.11 | K56: 0.01794767855
A57: 517723 | B57: 84251B | C57: GREETING CARD, STICKY GORDON | D57: 1 | E57: 2010-08-01T12:48:00 | F57: 0.19 | G57: 14878 | H57: United Kingdom | I57: 0.19 | J57: 6.3 | K57: 0.01850578967
A58: 519188 | B58: 84251B | C58: GREETING CARD, STICKY GORDON | D58: 1 | E58: 2010-08-13T16:17:00 | F58: 0.19 | G58: 14693 | H58: United Kingdom | I58: 0.19 | J58: 6.49 | K58: 0.01906390079
A59: 519188 | B59: 84251G | C59: GREETING CARD, OVERCROWDED POOL. | D59: 1 | E59: 2010-08-13T16:17:00 | F59: 0.19 | G59: 14693 | H59: United Kingdom | I59: 0.19 | J59: 6.68 | K59: 0.0196220119
A60: 519188 | B60: 84251C | C60: GREETING CARD, TWO SISTERS. | D60: 1 | E60: 2010-08-13T16:17:00 | F60: 0.19 | G60: 14693 | H60: United Kingdom | I60: 0.19 | J60: 6.87 | K60: 0.02018012302
A61: 519188 | B61: 84251F | C61: GREETING CARD, RITA | D61: 1 | E61: 2010-08-13T16:17:00 | F61: 0.19 | G61: 14693 | H61: United Kingdom | I61: 0.19 | J61: 7.06 | K61: 0.02073823414
A62: 520207 | B62: 84201B | C62: HAPPY BIRTHDAY CARD STRIPEY TEDDY | D62: 1 | E62: 2010-08-24T16:14:00 | F62: 0.19 | G62: 15666 | H62: United Kingdom | I62: 0.19 | J62: 7.25 | K62: 0.02129634525
A63: 520207 | B63: 84201C | C63: HAPPY BIRTHDAY CARD TEDDY/CAKE | D63: 1 | E63: 2010-08-24T16:14:00 | F63: 0.19 | G63: 15666 | H63: United Kingdom | I63: 0.19 | J63: 7.44 | K63: 0.02185445637
A64: 522281 | B64: 84251F | C64: GREETING CARD, RITA | D64: 1 | E64: 2010-09-13T12:56:00 | F64: 0.19 | G64: 16374 | H64: United Kingdom | I64: 0.19 | J64: 7.63 | K64: 0.02241256749
A65: 524322 | B65: 47420 | C65: ASSORTED COLOUR SUCTION CUP HOOK | D65: 1 | E65: 2010-09-28T14:33:00 | F65: 0.19 | G65: 16710 | H65: United Kingdom | I65: 0.19 | J65: 7.82 | K65: 0.0229706786
A66: 525856 | B66: 46115B | C66: GREEN POP ART MAO CUSHION COVER | D66: 1 | E66: 2010-10-07T13:05:00 | F66: 0.19 | G66: 13569 | H66: United Kingdom | I66: 0.19 | J66: 8.01 | K66: 0.02352878972
A67: 527065 | B67: 35607A | C67: PINK FLUFFY CHRISTMAS DECORATION | D67: 1 | E67: 2010-10-14T13:57:00 | F67: 0.19 | G67: 17751 | H67: United Kingdom | I67: 0.19 | J67: 8.2 | K67: =J67/$J$1 -> 0.02408690084
A68: 527065 | B68: 35607B | C68: BLACK FEATHER CHRISTMAS DECORATION | D68: 1 | E68: 2010-10-14T13:57:00 | F68: 0.19 | G68: 17751 | H68: United Kingdom | I68: 0.19 | J68: =I68+J67 -> 8.39 | K68: 0.02464501196
A69: 528127 | B69: 84201B | C69: HAPPY BIRTHDAY CARD STRIPEY TEDDY | D69: 1 | E69: 2010-10-20T14:42:00 | F69: 0.19 | H69: United Kingdom | I69: 0.19 | J69: 8.58 | K69: 0.02520312307
A70: 530085 | B70: 35607B | C70: BLACK FEATHER CHRISTMAS DECORATION | D70: 1 | E70: 2010-11-01T13:26:00 | F70: 0.19 | G70: 17315 | H70: United Kingdom | I70: 0.19 | J70: 8.77 | K70: 0.02576123419
A71: 496979 | B71: 22499 | C71: WOODEN UNION JACK BUNTING | D71: 2 | E71: 2010-02-05T09:58:00 | F71: 0.1 | H71: United Kingdom | I71: 0.2 | J71: 8.97 | K71: 0.02634871958
A72: 489571 | B72: 16237 | C72: SLEEPING CAT ERASERS | D72: 1 | E72: 2009-12-01T13:29:00 | F72: 0.21 | G72: 15967 | H72: United Kingdom | I72: 0.21 | J72: 9.18 | K72: 0.02696557923
A73: 489802 | B73: 16235 | C73: RECYCLED PENCIL WITH RABBIT ERASER | D73: 1 | E73: 2009-12-02T12:32:00 | F73: 0.21 | G73: 15581 | H73: United Kingdom | I73: 0.21 | J73: 9.39 | K73: 0.02758243889
A74: 490300 | B74: M | C74: Manual | D74: 1 | E74: 2009-12-04T14:19:00 | F74: 0.21 | G74: 12970 | H74: United Kingdom | I74: 0.21 | J74: 9.6 | K74: 0.02819929854
A75: 490323 | B75: 84199 | C75: GLOW IN DARK DOLPHINS | D75: 1 | E75: 2009-12-04T15:27:00 | F75: 0.21 | G75: 14087 | H75: United Kingdom | I75: 0.21 | J75: 9.81 | K75: 0.0288161582
A76: 490362 | B76: 84199 | C76: GLOW IN DARK DOLPHINS | D76: 1 | E76: 2009-12-04T17:31:00 | F76: 0.21 | G76: 12748 | H76: United Kingdom | I76: 0.21 | J76: 10.02 | K76: 0.02943301785
A77: 490613 | B77: 21829 | C77: DINOSAUR KEYRINGS ASSORTED | D77: 1 | E77: 2009-12-07T11:47:00 | F77: 0.21 | G77: 16768 | H77: United Kingdom | I77: 0.21 | J77: 10.23 | K77: 0.03004987751
A78: 490693 | B78: 16236 | C78: KITTY PENCIL ERASERS | D78: 1 | E78: 2009-12-07T13:59:00 | F78: 0.21 | G78: 14670 | H78: United Kingdom | I78: 0.21 | J78: 10.44 | K78: 0.03066673716
A79: 491435 | B79: 17003 | C79: BROCADE RING PURSE | D79: 1 | E79: 2009-12-11T10:10:00 | F79: 0.21 | G79: 14606 | H79: United Kingdom | I79: 0.21 | J79: 10.65 | K79: 0.03128359682
A80: 491712 | B80: 16236 | C80: KITTY PENCIL ERASERS | D80: 1 | E80: 2009-12-13T15:17:00 | F80: 0.21 | G80: 15562 | H80: United Kingdom | I80: 0.21 | J80: 10.86 | K80: 0.03190045648
A81: 491893 | B81: 44234 | C81: ASSORTED CIRCULAR MOBILE | D81: 1 | E81: 2009-12-14T15:17:00 | F81: 0.21 | G81: 16805 | H81: United Kingdom | I81: 0.21 | J81: 11.07 | K81: 0.03251731613
A82: 492593 | B82: 16236 | C82: KITTY PENCIL ERASERS | D82: 1 | E82: 2009-12-17T15:44:00 | F82: 0.21 | G82: 15917 | H82: United Kingdom | I82: 0.21 | J82: 11.28 | K82: 0.03313417579
A83: 492659 | B83: 84199 | C83: GLOW IN DARK DOLPHINS | D83: 1 | E83: 2009-12-17T17:54:00 | F83: 0.21 | G83: 16720 | H83: United Kingdom | I83: 0.21 | J83: 11.49 | K83: 0.03375103544
A84: 492820 | B84: 84199 | C84: GLOW IN DARK DOLPHINS | D84: 1 | E84: 2009-12-20T14:40:00 | F84: 0.21 | G84: 14404 | H84: United Kingdom | I84: 0.21 | J84: 11.7 | K84: 0.0343678951
A85: 493842 | B85: 10120 | C85: DOGGY RUBBER | D85: 1 | E85: 2010-01-07T14:20:00 | F85: 0.21 | H85: United Kingdom | I85: 0.21 | J85: 11.91 | K85: 0.03498475475
A86: 493974 | B86: 17136A | C86: BLUE STONES ON WIRE FOR CANDLE | D86: 1 | E86: 2010-01-10T11:12:00 | F86: 0.21 | G86: 16787 | H86: United Kingdom | I86: 0.21 | J86: 12.12 | K86: 0.03560161441
A87: 494213 | B87: 16237 | C87: SLEEPING CAT ERASERS | D87: 1 | E87: 2010-01-12T11:40:00 | F87: 0.21 | G87: 17945 | H87: United Kingdom | I87: 0.21 | J87: 12.33 | K87: 0.03621847407
A88: 494359 | B88: 44234 | C88: ASSORTED CIRCULAR MOBILE | D88: 1 | E88: 2010-01-13T15:24:00 | F88: 0.21 | G88: 17962 | H88: United Kingdom | I88: 0.21 | J88: 12.54 | K88: 0.03683533372
A89: 494359 | B89: 44234 | C89: ASSORTED CIRCULAR MOBILE | D89: 1 | E89: 2010-01-13T15:24:00 | F89: 0.21 | G89: 17962 | H89: United Kingdom | I89: 0.21 | J89: 12.75 | K89: 0.03745219338
A90: 494359 | B90: 44234 | C90: ASSORTED CIRCULAR MOBILE | D90: 1 | E90: 2010-01-13T15:24:00 | F90: 0.21 | G90: 17962 | H90: United Kingdom | I90: 0.21 | J90: 12.96 | K90: 0.03806905303
A91: 495193 | B91: 17003 | C91: BROCADE RING PURSE | D91: 1 | E91: 2010-01-21T15:02:00 | F91: 0.21 | G91: 14606 | H91: United Kingdom | I91: 0.21 | J91: 13.17 | K91: 0.03868591269
A92: 495921 | B92: 17136A | C92: BLUE STONES ON WIRE FOR CANDLE | D92: 1 | E92: 2010-01-27T14:03:00 | F92: 0.21 | G92: 15311 | H92: United Kingdom | I92: 0.21 | J92: 13.38 | K92: 0.03930277234
A93: 496301 | B93: 16236 | C93: KITTY PENCIL ERASERS | D93: 1 | E93: 2010-01-31T11:01:00 | F93: 0.21 | G93: 16718 | H93: United Kingdom | I93: 0.21 | J93: 13.59 | K93: 0.039919632
A94: 497501 | B94: 17003 | C94: BROCADE RING PURSE | D94: 1 | E94: 2010-02-10T11:14:00 | F94: 0.21 | G94: 14606 | H94: United Kingdom | I94: 0.21 | J94: 13.8 | K94: 0.04053649165
A95: 498389 | B95: 17003 | C95: BROCADE RING PURSE | D95: 1 | E95: 2010-02-18T14:43:00 | F95: 0.21 | G95: 14606 | H95: United Kingdom | I95: 0.21 | J95: 14.01 | K95: 0.04115335131
A96: 498765 | B96: 84568 | C96: GIRLS ALPHABET IRON ON PATCHES | D96: 1 | E96: 2010-02-23T09:37:00 | F96: 0.21 | G96: 12755 | H96: Japan | I96: 0.21 | J96: 14.22 | K96: 0.04177021097
A97: 499764 | B97: 16237 | C97: SLEEPING CAT ERASERS | D97: 1 | E97: 2010-03-02T13:09:00 | F97: 0.21 | G97: 17372 | H97: United Kingdom | I97: 0.21 | J97: 14.43 | K97: 0.04238707062
A98: 501853 | B98: 16237 | C98: SLEEPING CAT ERASERS | D98: 1 | E98: 2010-03-21T11:07:00 | F98: 0.21 | G98: 16782 | H98: United Kingdom | I98: 0.21 | J98: 14.64 | K98: 0.04300393028
A99: 502841 | B99: 84077 | C99: WORLD WAR 2 GLIDERS ASSTD DESIGNS | D99: 1 | E99: 2010-03-28T13:21:00 | F99: 0.21 | G99: 18283 | H99: United Kingdom | I99: 0.21 | J99: 14.85 | K99: 0.04362078993
A100: 503956 | B100: 84077 | C100: WORLD WAR 2 GLIDERS ASSTD DESIGNS | D100: 1 | E100: 2010-04-08T16:45:00 | F100: 0.21 | G100: 13443 | H100: United Kingdom | I100: 0.21 | J100: 15.06 | K100: 0.04423764959
A101: 504901 | B101: 44234 | C101: ASSORTED CIRCULAR MOBILE | D101: 1 | E101: 2010-04-18T15:34:00 | F101: 0.21 | G101: 16921 | H101: United Kingdom | I101: 0.21 | J101: 15.27 | K101: 0.04485450924
A102: 505018 | B102: 72708 | C102: SCULPTED ROUND IVORY CANDLE | D102: 1 | E102: 2010-04-19T14:08:00 | F102: 0.21 | G102: 15451 | H102: United Kingdom | I102: 0.21 | J102: 15.48 | K102: 0.0454713689
A103: 505067 | B103: 16237 | C103: SLEEPING CAT ERASERS | D103: 1 | E103: 2010-04-19T16:48:00 | F103: 0.21 | G103: 14606 | H103: United Kingdom | I103: 0.21 | J103: 15.69 | K103: 0.04608822856
A104: 505202 | B104: 21829 | C104: DINOSAUR KEYRINGS ASSORTED | D104: 1 | E104: 2010-04-20T16:21:00 | F104: 0.21 | H104: United Kingdom | I104: 0.21 | J104: 15.9 | K104: 0.04670508821
A105: 506556 | B105: 17096 | C105: ASSORTED LAQUERED INCENSE HOLDERS | D105: 1 | E105: 2010-04-30T11:28:00 | F105: 0.21 | G105: 14994 | H105: United Kingdom | I105: 0.21 | J105: 16.11 | K105: 0.04732194787
A106: 506556 | B106: 17096 | C106: ASSORTED LAQUERED INCENSE HOLDERS | D106: 1 | E106: 2010-04-30T11:28:00 | F106: 0.21 | G106: 14994 | H106: United Kingdom | I106: 0.21 | J106: 16.32 | K106: 0.04793880752
A107: 507838 | B107: 84199 | C107: GLOW IN DARK DOLPHINS | D107: 1 | E107: 2010-05-11T13:30:00 | F107: 0.21 | G107: 15034 | H107: United Kingdom | I107: 0.21 | J107: 16.53 | K107: 0.04855566718
A108: 511047 | B108: 84270 | C108: ASSTD DESIGN BUBBLE GUM RING | D108: 1 | E108: 2010-06-06T11:38:00 | F108: 0.21 | G108: 14573 | H108: United Kingdom | I108: 0.21 | J108: 16.74 | K108: 0.04917252683
A109: 511295 | B109: 44234 | C109: ASSORTED CIRCULAR MOBILE | D109: 1 | E109: 2010-06-07T15:05:00 | F109: 0.21 | G109: 15551 | H109: United Kingdom | I109: 0.21 | J109: 16.95 | K109: 0.04978938649
A110: 511970 | B110: 17003 | C110: BROCADE RING PURSE | D110: 1 | E110: 2010-06-11T13:59:00 | F110: 0.21 | G110: 18022 | H110: United Kingdom | I110: 0.21 | J110: 17.16 | K110: 0.05040624614
A111: 515916 | B111: 17096 | C111: ASSORTED LAQUERED INCENSE HOLDERS | D111: 1 | E111: 2010-07-15T13:32:00 | F111: 0.21 | G111: 15542 | H111: United Kingdom | I111: 0.21 | J111: 17.37 | K111: 0.0510231058
A112: 515916 | B112: 17096 | C112: ASSORTED LAQUERED INCENSE HOLDERS | D112: 1 | E112: 2010-07-15T13:32:00 | F112: 0.21 | G112: 15542 | H112: United Kingdom | I112: 0.21 | J112: 17.58 | K112: 0.05163996546
A113: 515987 | B113: 84077 | C113: WORLD WAR 2 GLIDERS ASSTD DESIGNS | D113: 1 | E113: 2010-07-16T08:20:00 | F113: 0.21 | H113: United Kingdom | I113: 0.21 | J113: 17.79 | K113: 0.05225682511
A114: 517555 | B114: 16237 | C114: SLEEPING CAT ERASERS | D114: 1 | E114: 2010-07-29T19:18:00 | F114: 0.21 | G114: 15998 | H114: United Kingdom | I114: 0.21 | J114: 18 | K114: 0.05287368477
A115: 517743 | B115: 16236 | C115: KITTY PENCIL ERASERS | D115: 1 | E115: 2010-08-01T15:51:00 | F115: 0.21 | G115: 17984 | H115: United Kingdom | I115: 0.21 | J115: 18.21 | K115: 0.05349054442
A116: 518769 | B116: 84077 | C116: WORLD WAR 2 GLIDERS ASSTD DESIGNS | D116: 1 | E116: 2010-08-11T15:13:00 | F116: 0.21 | G116: 14736 | H116: United Kingdom | I116: 0.21 | J116: 18.42 | K116: 0.05410740408
A117: 519600 | B117: 84199 | C117: GLOW IN DARK DOLPHINS | D117: 1 | E117: 2010-08-18T15:47:00 | F117: 0.21 | G117: 15353 | H117: United Kingdom | I117: 0.21 | J117: 18.63 | K117: 0.05472426373
A118: 519600 | B118: 84199 | C118: GLOW IN DARK DOLPHINS | D118: 1 | E118: 2010-08-18T15:47:00 | F118: 0.21 | G118: 15353 | H118: United Kingdom | I118: 0.21 | J118: 18.84 | K118: 0.05534112339
A119: 520877 | B119: 16236 | C119: KITTY PENCIL ERASERS | D119: 1 | E119: 2010-08-31T15:28:00 | F119: 0.21 | G119: 17346 | H119: United Kingdom | I119: 0.21 | J119: 19.05 | K119: 0.05595798305
A120: 522090 | B120: 44234 | C120: ASSORTED CIRCULAR MOBILE | D120: 1 | E120: 2010-09-12T12:46:00 | F120: 0.21 | G120: 16799 | H120: United Kingdom | I120: 0.21 | J120: 19.26 | K120: 0.0565748427
A121: 522281 | B121: 16237 | C121: SLEEPING CAT ERASERS | D121: 1 | E121: 2010-09-13T12:56:00 | F121: 0.21 | G121: 16374 | H121: United Kingdom | I121: 0.21 | J121: 19.47 | K121: 0.05719170236
A122: 522327 | B122: 16237 | C122: SLEEPING CAT ERASERS | D122: 1 | E122: 2010-09-13T16:15:00 | F122: 0.21 | G122: 18069 | H122: United Kingdom | I122: 0.21 | J122: 19.68 | K122: 0.05780856201
A123: 522437 | B123: 16237 | C123: SLEEPING CAT ERASERS | D123: 1 | E123: 2010-09-14T13:56:00 | F123: 0.21 | G123: 17346 | H123: United Kingdom | I123: 0.21 | J123: 19.89 | K123: 0.05842542167
A124: 524508 | B124: 84199 | C124: GLOW IN DARK DOLPHINS | D124: 1 | E124: 2010-09-29T12:41:00 | F124: 0.21 | G124: 13770 | H124: United Kingdom | I124: 0.21 | J124: 20.1 | K124: 0.05904228132
A125: 526268 | B125: 16011 | C125: ANIMAL STICKERS | D125: 1 | E125: 2010-10-11T10:58:00 | F125: 0.21 | G125: 14651 | H125: United Kingdom | I125: 0.21 | J125: 20.31 | K125: 0.05965914098
A126: 526388 | B126: 16237 | C126: SLEEPING CAT ERASERS | D126: 1 | E126: 2010-10-11T12:52:00 | F126: 0.21 | G126: 17264 | H126: United Kingdom | I126: 0.21 | J126: 20.52 | K126: 0.06027600063
A127: 526891 | B127: 84199 | C127: GLOW IN DARK DOLPHINS | D127: 1 | E127: 2010-10-13T14:41:00 | F127: 0.21 | G127: 13832 | H127: United Kingdom | I127: 0.21 | J127: 20.73 | K127: 0.06089286029
A128: 526906 | B128: 84199 | C128: GLOW IN DARK DOLPHINS | D128: 1 | E128: 2010-10-13T15:22:00 | F128: 0.21 | G128: 16120 | H128: United Kingdom | I128: 0.21 | J128: 20.94 | K128: 0.06150971995
A129: 527344 | B129: 84598 | C129: BOYS ALPHABET IRON ON PATCHES | D129: 1 | E129: 2010-10-15T15:38:00 | F129: 0.21 | G129: 13069 | H129: United Kingdom | I129: 0.21 | J129: 21.15 | K129: 0.0621265796
A130: 527890 | B130: 16238 | C130: PARTY TIME PENCIL ERASERS | D130: 1 | E130: 2010-10-19T12:15:00 | F130: 0.21 | G130: 17365 | H130: United Kingdom | I130: 0.21 | J130: 21.36 | K130: 0.06274343926
A131: 527890 | B131: 16236 | C131: KITTY PENCIL ERASERS | D131: 1 | E131: 2010-10-19T12:15:00 | F131: 0.21 | G131: 17365 | H131: United Kingdom | I131: 0.21 | J131: 21.57 | K131: =J131/$J$1 -> 0.06336029891
A132: 528477 | B132: 16237 | C132: SLEEPING CAT ERASERS | D132: 1 | E132: 2010-10-22T12:02:00 | F132: 0.21 | G132: 18022 | H132: United Kingdom | I132: 0.21 | J132: =I132+J131 -> 21.78 | K132: 0.06397715857
A133: 528477 | B133: 16238 | C133: PARTY TIME PENCIL ERASERS | D133: 1 | E133: 2010-10-22T12:02:00 | F133: 0.21 | G133: 18022 | H133: United Kingdom | I133: 0.21 | J133: 21.99 | K133: 0.06459401822
A134: 528477 | B134: 16236 | C134: KITTY PENCIL ERASERS | D134: 1 | E134: 2010-10-22T12:02:00 | F134: 0.21 | G134: 18022 | H134: United Kingdom | I134: 0.21 | J134: 22.2 | K134: 0.06521087788
A135: 528694 | B135: 84199 | C135: GLOW IN DARK DOLPHINS | D135: 1 | E135: 2010-10-24T13:01:00 | F135: 0.21 | G135: 15059 | H135: United Kingdom | I135: 0.21 | J135: 22.41 | K135: 0.06582773754
A136: 529981 | B136: 21829 | C136: DINOSAUR KEYRINGS ASSORTED | D136: 1 | E136: 2010-10-31T15:31:00 | F136: 0.21 | G136: 16686 | H136: United Kingdom | I136: 0.21 | J136: 22.62 | K136: 0.06644459719
A137: 530115 | B137: 84199 | C137: GLOW IN DARK DOLPHINS | D137: 1 | E137: 2010-11-01T14:22:00 | F137: 0.21 | G137: 17190 | H137: United Kingdom | I137: 0.21 | J137: 22.83 | K137: 0.06706145685
A138: 530437 | B138: 16237 | C138: SLEEPING CAT ERASERS | D138: 1 | E138: 2010-11-03T11:13:00 | F138: 0.21 | G138: 15915 | H138: United Kingdom | I138: 0.21 | J138: 23.04 | K138: 0.0676783165
A139: 530437 | B139: 16235 | C139: RECYCLED PENCIL WITH RABBIT ERASER | D139: 1 | E139: 2010-11-03T11:13:00 | F139: 0.21 | G139: 15915 | H139: United Kingdom | I139: 0.21 | J139: 23.25 | K139: 0.06829517616
A140: 530437 | B140: 16235 | C140: RECYCLED PENCIL WITH RABBIT ERASER | D140: 1 | E140: 2010-11-03T11:13:00 | F140: 0.21 | G140: 15915 | H140: United Kingdom | I140: 0.21 | J140: 23.46 | K140: 0.06891203581
A141: 530437 | B141: M | C141: Manual | D141: 1 | E141: 2010-11-03T11:13:00 | F141: 0.21 | G141: 15915 | H141: United Kingdom | I141: 0.21 | J141: 23.67 | K141: 0.06952889547
A142: 530810 | B142: 16237 | C142: SLEEPING CAT ERASERS | D142: 1 | E142: 2010-11-04T13:03:00 | F142: 0.21 | G142: 16327 | H142: United Kingdom | I142: 0.21 | J142: 23.88 | K142: 0.07014575512
A143: 530810 | B143: 10120 | C143: DOGGY RUBBER | D143: 1 | E143: 2010-11-04T13:03:00 | F143: 0.21 | G143: 16327 | H143: United Kingdom | I143: 0.21 | J143: 24.09 | K143: 0.07076261478
A144: 531435 | B144: 17003 | C144: BROCADE RING PURSE | D144: 1 | E144: 2010-11-08T12:06:00 | F144: 0.21 | G144: 14688 | H144: United Kingdom | I144: 0.21 | J144: 24.3 | K144: 0.07137947444
A145: 531440 | B145: 84199 | C145: GLOW IN DARK DOLPHINS | D145: 1 | E145: 2010-11-08T12:28:00 | F145: 0.21 | G145: 16470 | H145: United Kingdom | I145: 0.21 | J145: 24.51 | K145: 0.07199633409
A146: 531440 | B146: 84199 | C146: GLOW IN DARK DOLPHINS | D146: 1 | E146: 2010-11-08T12:28:00 | F146: 0.21 | G146: 16470 | H146: United Kingdom | I146: 0.21 | J146: 24.72 | K146: 0.07261319375
A147: 532369 | B147: 16236 | C147: KITTY PENCIL ERASERS | D147: 1 | E147: 2010-11-11T17:55:00 | F147: 0.21 | G147: 17862 | H147: United Kingdom | I147: 0.21 | J147: 24.93 | K147: 0.0732300534
A148: 532369 | B148: 16238 | C148: PARTY TIME PENCIL ERASERS | D148: 1 | E148: 2010-11-11T17:55:00 | F148: 0.21 | G148: 17862 | H148: United Kingdom | I148: 0.21 | J148: 25.14 | K148: 0.07384691306
A149: 533133 | B149: 16235 | C149: RECYCLED PENCIL WITH RABBIT ERASER | D149: 1 | E149: 2010-11-16T12:50:00 | F149: 0.21 | G149: 15850 | H149: United Kingdom | I149: 0.21 | J149: 25.35 | K149: 0.07446377271
A150: 533510 | B150: 84199 | C150: GLOW IN DARK DOLPHINS | D150: 1 | E150: 2010-11-17T14:31:00 | F150: 0.21 | G150: 17987 | H150: United Kingdom | I150: 0.21 | J150: 25.56 | K150: 0.07508063237
A151: 533510 | B151: 84199 | C151: GLOW IN DARK DOLPHINS | D151: 1 | E151: 2010-11-17T14:31:00 | F151: 0.21 | G151: 17987 | H151: United Kingdom | I151: 0.21 | J151: 25.77 | K151: 0.07569749202
A152: 533841 | B152: 16237 | C152: SLEEPING CAT ERASERS | D152: 1 | E152: 2010-11-19T11:12:00 | F152: 0.21 | G152: 17269 | H152: United Kingdom | I152: 0.21 | J152: 25.98 | K152: 0.07631435168
A153: 534066 | B153: 16236 | C153: KITTY PENCIL ERASERS | D153: 1 | E153: 2010-11-21T11:28:00 | F153: 0.21 | G153: 17920 | H153: United Kingdom | I153: 0.21 | J153: 26.19 | K153: 0.07693121134
A154: 534902 | B154: 16237 | C154: SLEEPING CAT ERASERS | D154: 1 | E154: 2010-11-24T15:09:00 | F154: 0.21 | G154: 17349 | H154: United Kingdom | I154: 0.21 | J154: 26.4 | K154: 0.07754807099
A155: 535324 | B155: 16237 | C155: SLEEPING CAT ERASERS | D155: 1 | E155: 2010-11-25T15:26:00 | F155: 0.21 | G155: 14482 | H155: United Kingdom | I155: 0.21 | J155: 26.61 | K155: 0.07816493065
A156: 535427 | B156: 10120 | C156: DOGGY RUBBER | D156: 1 | E156: 2010-11-26T12:05:00 | F156: 0.21 | G156: 15872 | H156: United Kingdom | I156: 0.21 | J156: 26.82 | K156: 0.0787817903
A157: 535464 | B157: 16237 | C157: SLEEPING CAT ERASERS | D157: 1 | E157: 2010-11-26T13:16:00 | F157: 0.21 | G157: 17999 | H157: United Kingdom | I157: 0.21 | J157: 27.03 | K157: 0.07939864996
A158: 535464 | B158: 10120 | C158: DOGGY RUBBER | D158: 1 | E158: 2010-11-26T13:16:00 | F158: 0.21 | G158: 17999 | H158: United Kingdom | I158: 0.21 | J158: 27.24 | K158: 0.08001550961
A159: 535464 | B159: 16236 | C159: KITTY PENCIL ERASERS | D159: 1 | E159: 2010-11-26T13:16:00 | F159: 0.21 | G159: 17999 | H159: United Kingdom | I159: 0.21 | J159: 27.45 | K159: 0.08063236927
A160: 535464 | B160: 16238 | C160: PARTY TIME PENCIL ERASERS | D160: 1 | E160: 2010-11-26T13:16:00 | F160: 0.21 | G160: 17999 | H160: United Kingdom | I160: 0.21 | J160: 27.66 | K160: 0.08124922893
A161: 535810 | B161: 16237 | C161: SLEEPING CAT ERASERS | D161: 1 | E161: 2010-11-28T15:14:00 | F161: 0.21 | G161: 16893 | H161: United Kingdom | I161: 0.21 | J161: 27.87 | K161: 0.08186608858
A162: 536863 | B162: 10120 | C162: DOGGY RUBBER | D162: 1 | E162: 2010-12-03T11:19:00 | F162: 0.21 | G162: 17967 | H162: United Kingdom | I162: 0.21 | J162: 28.08 | K162: 0.08248294824
A163: 536863 | B163: 16237 | C163: SLEEPING CAT ERASERS | D163: 1 | E163: 2010-12-03T11:19:00 | F163: 0.21 | G163: 17967 | H163: United Kingdom | I163: 0.21 | J163: 28.29 | K163: 0.08309980789
A164: 536987 | B164: 16237 | C164: SLEEPING CAT ERASERS | D164: 1 | E164: 2010-12-03T14:54:00 | F164: 0.21 | G164: 17198 | H164: United Kingdom | I164: 0.21 | J164: 28.5 | K164: 0.08371666755
A165: 536987 | B165: 16238 | C165: PARTY TIME PENCIL ERASERS | D165: 1 | E165: 2010-12-03T14:54:00 | F165: 0.21 | G165: 17198 | H165: United Kingdom | I165: 0.21 | J165: 28.71 | K165: 0.0843335272
A166: 537023 | B166: 16237 | C166: SLEEPING CAT ERASERS | D166: 1 | E166: 2010-12-03T16:02:00 | F166: 0.21 | G166: 16725 | H166: United Kingdom | I166: 0.21 | J166: 28.92 | K166: 0.08495038686
A167: 493842 | B167: 16045 | C167: POPART WOODEN PENCILS ASST | D167: 2 | E167: 2010-01-07T14:20:00 | F167: 0.12 | H167: United Kingdom | I167: 0.24 | J167: 29.16 | K167: 0.08565536932
A168: 494644 | B168: 16010 | C168: FOLDING CAMPING SCISSOR W/KNIF & S | D168: 2 | E168: 2010-01-17T12:12:00 | F168: 0.12 | G168: 16595 | H168: United Kingdom | I168: 0.24 | J168: 29.4 | K168: 0.08636035179
A169: 499220 | B169: 20668 | C169: DISCO BALL CHRISTMAS DECORATION | D169: 2 | E169: 2010-02-25T11:32:00 | F169: 0.12 | G169: 14606 | H169: United Kingdom | I169: 0.24 | J169: 29.64 | K169: 0.08706533425
A170: 502363 | B170: 20668 | C170: DISCO BALL CHRISTMAS DECORATION | D170: 2 | E170: 2010-03-24T11:19:00 | F170: 0.12 | G170: 14606 | H170: United Kingdom | I170: 0.24 | J170: 29.88 | K170: 0.08777031671
A171: 535810 | B171: 20668 | C171: DISCO BALL CHRISTMAS DECORATION | D171: 2 | E171: 2010-11-28T15:14:00 | F171: 0.12 | G171: 16893 | H171: United Kingdom | I171: 0.24 | J171: 30.12 | K171: 0.08847529918
A172: 503972 | B172: 16050 | C172: TEATIME PENCIL WITH RUBBER | D172: 1 | E172: 2010-04-08T17:44:00 | F172: 0.25 | G172: 17180 | H172: United Kingdom | I172: 0.25 | J172: 30.37 | K172: 0.08920965591
A173: 534887 | B173: 16008 | C173: SMALL FOLDING SCISSOR(POINTED EDGE) | D173: 1 | E173: 2010-11-24T14:55:00 | F173: 0.25 | G173: 16903 | H173: United Kingdom | I173: 0.25 | J173: 30.62 | K173: 0.08994401264
A174: 489640 | B174: 15034 | C174: PAPER POCKET TRAVELING FAN | D174: 2 | E174: 2009-12-01T16:17:00 | F174: 0.14 | G174: 17345 | H174: United Kingdom | I174: 0.28 | J174: 30.9 | K174: 0.09076649218
A175: 495389 | B175: 15034 | C175: PAPER POCKET TRAVELING FAN | D175: 2 | E175: 2010-01-24T15:14:00 | F175: 0.14 | G175: 14044 | H175: United Kingdom | I175: 0.28 | J175: 31.18 | K175: 0.09158897172
A176: 509529 | B176: 15034 | C176: PAPER POCKET TRAVELING FAN | D176: 2 | E176: 2010-05-24T11:47:00 | F176: 0.14 | G176: 14710 | H176: United Kingdom | I176: 0.28 | J176: 31.46 | K176: 0.09241145127
A177: 489787 | B177: 21985 | C177: PACK OF 12 HEARTS DESIGN TISSUES | D177: 1 | E177: 2009-12-02T11:53:00 | F177: 0.29 | G177: 15542 | H177: United Kingdom | I177: 0.29 | J177: 31.75 | K177: 0.09326330508
A178: 489787 | B178: 21985 | C178: PACK OF 12 HEARTS DESIGN TISSUES | D178: 1 | E178: 2009-12-02T11:53:00 | F178: 0.29 | G178: 15542 | H178: United Kingdom | I178: 0.29 | J178: 32.04 | K178: 0.09411515889
A179: 489787 | B179: 21981 | C179: PACK OF 12 WOODLAND TISSUES | D179: 1 | E179: 2009-12-02T11:53:00 | F179: 0.29 | G179: 15542 | H179: United Kingdom | I179: 0.29 | J179: 32.33 | K179: 0.0949670127
A180: 490063 | B180: 21985 | C180: PACK OF 12 HEARTS DESIGN TISSUES | D180: 1 | E180: 2009-12-03T13:49:00 | F180: 0.29 | G180: 17271 | H180: United Kingdom | I180: 0.29 | J180: 32.62 | K180: 0.09581886651
A181: 490403 | B181: 17033 | C181: BROCADE PURSE,SMALL ARCH BUTTON | D181: 1 | E181: 2009-12-06T11:13:00 | F181: 0.29 | G181: 17920 | H181: United Kingdom | I181: 0.29 | J181: 32.91 | K181: 0.09667072032
A182: 490494 | B182: 21984 | C182: PACK OF 12 PINK PAISLEY TISSUES | D182: 1 | E182: 2009-12-06T13:29:00 | F182: 0.29 | G182: 17561 | H182: United Kingdom | I182: 0.29 | J182: 33.2 | K182: 0.09752257413
A183: 492376 | B183: 47013A | C183: WINE BOTTLE DRESSING LT.BLUE | D183: 1 | E183: 2009-12-16T14:59:00 | F183: 0.29 | G183: 17776 | H183: United Kingdom | I183: 0.29 | J183: 33.49 | K183: 0.09837442794
A184: 492376 | B184: 47013C | C184: WINE BOTTLE DRESSING DARK BLUE | D184: 1 | E184: 2009-12-16T14:59:00 | F184: 0.29 | G184: 17776 | H184: United Kingdom | I184: 0.29 | J184: 33.78 | K184: 0.09922628175
A185: 492548 | B185: 21967 | C185: PACK OF 12 SKULL TISSUES | D185: 1 | E185: 2009-12-17T14:14:00 | F185: 0.29 | H185: United Kingdom | I185: 0.29 | J185: 34.07 | K185: 0.1000781356
A186: 492548 | B186: 21982 | C186: PACK OF 12 SUKI TISSUES | D186: 1 | E186: 2009-12-17T14:14:00 | F186: 0.29 | H186: United Kingdom | I186: 0.29 | J186: 34.36 | K186: 0.1009299894
A187: 492686 | B187: 21982 | C187: PACK OF 12 SUKI TISSUES | D187: 1 | E187: 2009-12-17T18:40:00 | F187: 0.29 | H187: United Kingdom | I187: 0.29 | J187: 34.65 | K187: 0.1017818432
A188: 492703 | B188: 72225C | C188: LAVENDER SCENT CAKE CANDLE | D188: 1 | E188: 2009-12-17T19:33:00 | F188: 0.29 | H188: United Kingdom | I188: 0.29 | J188: 34.94 | K188: 0.102633697
A189: 492820 | B189: 21984 | C189: PACK OF 12 PINK PAISLEY TISSUES | D189: 1 | E189: 2009-12-20T14:40:00 | F189: 0.29 | G189: 14404 | H189: United Kingdom | I189: 0.29 | J189: 35.23 | K189: 0.1034855508
A190: 492820 | B190: 21983 | C190: PACK OF 12 BLUE PAISLEY TISSUES | D190: 1 | E190: 2009-12-20T14:40:00 | F190: 0.29 | G190: 14404 | H190: United Kingdom | I190: 0.29 | J190: 35.52 | K190: 0.1043374046
A191: 492820 | B191: 21980 | C191: PACK OF 12 RED SPOTTY TISSUES | D191: 1 | E191: 2009-12-20T14:40:00 | F191: 0.29 | G191: 14404 | H191: United Kingdom | I191: 0.29 | J191: 35.81 | K191: 0.1051892584
A192: 492820 | B192: 21986 | C192: PACK OF 12 PINK SPOT TISSUES | D192: 1 | E192: 2009-12-20T14:40:00 | F192: 0.29 | G192: 14404 | H192: United Kingdom | I192: 0.29 | J192: 36.1 | K192: 0.1060411122
A193: 494079 | B193: 21980 | C193: PACK OF 12 RED SPOTTY TISSUES | D193: 1 | E193: 2010-01-11T12:19:00 | F193: 0.29 | G193: 12835 | H193: United Kingdom | I193: 0.29 | J193: 36.39 | K193: 0.106892966
A194: 494079 | B194: 21986 | C194: PACK OF 12 PINK SPOT TISSUES | D194: 1 | E194: 2010-01-11T12:19:00 | F194: 0.29 | G194: 12835 | H194: United Kingdom | I194: 0.29 | J194: 36.68 | K194: 0.1077448198
A195: 494079 | B195: 21984 | C195: PACK OF 12 PINK PAISLEY TISSUES | D195: 1 | E195: 2010-01-11T12:19:00 | F195: 0.29 | G195: 12835 | H195: United Kingdom | I195: 0.29 | J195: 36.97 | K195: =J195/$J$1 -> 0.1085966737
A196: 494079 | B196: 21983 | C196: PACK OF 12 BLUE PAISLEY TISSUES | D196: 1 | E196: 2010-01-11T12:19:00 | F196: 0.29 | G196: 12835 | H196: United Kingdom | I196: 0.29 | J196: =I196+J195 -> 37.26 | K196: 0.1094485275
A197: 495013 | B197: 85230B | C197: CINNAMON SCENTED VOTIVE CANDLE | D197: 1 | E197: 2010-01-20T13:07:00 | F197: 0.29 | H197: United Kingdom | I197: 0.29 | J197: 37.55 | K197: 0.1103003813
A198: 495503 | B198: 21983 | C198: PACK OF 12 BLUE PAISLEY TISSUES | D198: 1 | E198: 2010-01-25T12:50:00 | F198: 0.29 | G198: 15858 | H198: United Kingdom | I198: 0.29 | J198: 37.84 | K198: 0.1111522351
A199: 496321 | B199: 21985 | C199: PACK OF 12 HEARTS DESIGN TISSUES | D199: 1 | E199: 2010-01-31T12:43:00 | F199: 0.29 | G199: 16014 | H199: United Kingdom | I199: 0.29 | J199: 38.13 | K199: 0.1120040889
A200: 496321 | B200: 21985 | C200: PACK OF 12 HEARTS DESIGN TISSUES | D200: 1 | E200: 2010-01-31T12:43:00 | F200: 0.29 | G200: 16014 | H200: United Kingdom | I200: 0.29 | J200: 38.42 | K200: 0.1128559427
... 801 more rows
